{"text_format":"1","workbook":"xlsx","n_sheets":7,"sheets":["Rekapitulacija","Povzetek","0. Uvodna stran","1. Gradbena dela","2. SN stikališče","3. Sekundarni sistemi","4. Storitve"],"not_rendered":{"charts":0,"images":0,"macros":1,"external_links":0,"defined_names":14,"comments":0,"pivot_tables":0},"unopened":[],"bounds":{"document_bytes":16777216,"sheet_cells":100000,"rows_first":2000,"rows_last":500,"rows_between":2000,"halvings":0,"cell_chars":16384,"cell_head_chars":4096},"cells_cut":0,"cells_raw":0,"read":"whole","date_system":"1900"}

{"sheet":"Rekapitulacija","index":0,"n_rows":183,"n_cols":12,"rows_kept":183,"cut":false,"hidden":false,"merged":[[9,8,9,10],[10,8,10,10],[0,10,0,12],[5,1,5,11],[12,2,12,7],[12,8,12,10],[14,2,14,7],[14,8,14,10],[7,2,7,7],[13,2,13,7],[13,8,13,10],[7,8,7,11],[11,2,11,7],[11,8,11,10],[8,2,8,7],[8,8,8,10],[10,2,10,7],[9,2,9,7]]}
[]
[]
[]
[]
[]
[null,"REKAPITULACIJA "]
[]
[null,"Zap. št.","Opis",null,null,null,null,null,"Skupna vrednost"]
[null,"1.",{"$f":"'1. Gradbena dela'!B3","v":"GRADBENA IN KLJUČAVNIČARSKA DELA"},null,null,null,null,null,{"$f":"'1. Gradbena dela'!F124","v":249175.65000000002},null,null,"€"]
[null,"2.",{"$f":"'2. SN stikališče'!B3","v":"SN STIKALIŠČE"},null,null,null,null,null,{"$f":"'2. SN stikališče'!F144","v":1246949.8199999989},null,null,"€"]
[null,"3.",{"$f":"'3. Sekundarni sistemi'!B3","v":"SEKUNDARNI SISTEMI"},null,null,null,null,null,{"$f":"'3. Sekundarni sistemi'!F263","v":283595.32000000012},null,null,"€"]
[null,"4.",{"$f":"'4. Storitve'!B3","v":"STORITVE"},null,null,null,null,null,{"$f":"'4. Storitve'!F32","v":91811.35},null,null,"€"]
[null,"5.","Skupaj poz. 1-4:",null,null,null,null,null,{"$f":"SUM(I9:K12)","v":1871532.139999999},null,null,"€"]
[null,"6.","Nepredvidena dela 5% (od pozicije 5.)",null,null,null,null,null,{"$f":"I13*0.05","v":93576.60699999996},null,null,"€"]
[null,null,"SKUPNA VREDNOST (5.+6.):",null,null,null,null,null,{"$f":"I13+I14","v":1965108.746999999},null,null,"€"]
[]
[]
[]
[]
[]
[]
[]
[]
[]
[]
[]
[]
[]
[]
[]
[]
[]
[]
[]
[]
[]
[]
[]
[]
[]
[]
[]
[]
[]
[]
[]
[]
[]
[]
[]
[]
[]
[]
[]
[]
[]
[]
[]
[]
[]
[]
[]
[]
[]
[]
[]
[]
[]
[]
[]
[]
[]
[]
[]
[]
[]
[]
[]
[]
[]
[]
[]
[]
[]
[]
[]
[]
[]
[]
[]
[]
[]
[]
[]
[]
[]
[]
[]
[]
[]
[]
[]
[]
[]
[]
[]
[]
[]
[]
[]
[null,null,null,null,null,null,null,null,{"$f":"L111*M111","v":0},{"$f":"H111*I111","v":0}]
[]
[null,null,null,null,null,null,null,null,{"$f":"L113*M113","v":0},{"$f":"H113*I113","v":0}]
[]
[]
[]
[null,null,null,null,null,null,null,null,{"$f":"L117*M117","v":0},{"$f":"H117*I117","v":0}]
[]
[null,null,null,null,null,null,null,null,{"$f":"L119*M119","v":0},{"$f":"H119*I119","v":0}]
[]
[]
[]
[null,null,null,null,null,null,null,null,{"$f":"L123*M123","v":0},{"$f":"H123*I123","v":0}]
[]
[null,null,null,null,null,null,null,null,{"$f":"L125*M125","v":0},{"$f":"H125*I125","v":0}]
[]
[null,null,null,null,null,null,null,null,{"$f":"L127*M127","v":0},{"$f":"H127*I127","v":0}]
[]
[null,null,null,null,null,null,null,null,{"$f":"L129*M129","v":0},{"$f":"H129*I129","v":0}]
[]
[null,null,null,null,null,null,null,null,{"$f":"L131*M131","v":0},{"$f":"H131*I131","v":0}]
[]
[null,null,null,null,null,null,null,null,{"$f":"L133*M133","v":0},{"$f":"H133*I133","v":0}]
[]
[]
[]
[null,null,null,null,null,null,null,null,{"$f":"L137*M137","v":0},{"$f":"H137*I137","v":0}]
[]
[]
[]
[]
[]
[null,null,null,null,null,null,null,null,{"$f":"L143*M143","v":0},{"$f":"H143*I143","v":0}]
[]
[]
[]
[null,null,null,null,null,null,null,null,{"$f":"L147*M147","v":0},{"$f":"H147*I147","v":0}]
[]
[]
[]
[]
[]
[null,null,null,null,null,null,null,null,{"$f":"L153*M153","v":0},{"$f":"H153*I153","v":0}]
[]
[null,null,null,null,null,null,null,null,{"$f":"L155*M155","v":0},{"$f":"H155*I155","v":0}]
[]
[]
[]
[]
[]
[null,null,null,null,null,null,null,null,{"$f":"L161*M161","v":0},{"$f":"H161*I161","v":0}]
[]
[]
[]
[null,null,null,null,null,null,null,null,{"$f":"L165*M165","v":0},{"$f":"H165*I165","v":0}]
[]
[null,null,null,null,null,null,null,null,{"$f":"L167*M167","v":0},{"$f":"H167*I167","v":0}]
[]
[]
[]
[]
[]
[null,null,null,null,null,null,null,null,{"$f":"L173*M173","v":0},{"$f":"H173*I173","v":0}]
[]
[null,null,null,null,null,null,null,null,{"$f":"L175*M175","v":0},{"$f":"H175*I175","v":0}]
[]
[]
[]
[]
[null,null,null,null,null,null,null,null,null,{"$f":"(J177+J81+J65+J45+J16+#REF!)*0.05","v":{"$error":"#REF!"}}]
[]
[]
[null,null,null,null,null,null,null,null,null,{"$f":"J177+J81+J65+J45+J16+#REF!+J180","v":{"$error":"#REF!"}}]

{"sheet":"Povzetek","index":1,"n_rows":207,"n_cols":12,"rows_kept":207,"cut":false,"hidden":false,"merged":[[25,2,25,7],[25,8,25,10],[33,2,33,7],[33,8,33,10],[32,2,32,7],[32,8,32,10],[29,2,29,7],[29,8,29,10],[30,2,30,7],[30,8,30,10],[31,2,31,7],[31,8,31,10],[13,2,13,7],[13,8,13,10],[34,2,34,7],[34,8,34,10],[35,2,35,7],[35,8,35,10],[16,2,16,7],[16,8,16,10],[17,2,17,7],[17,8,17,10],[18,2,18,7],[18,8,18,10],[20,2,20,7],[20,8,20,10],[21,2,21,7],[21,8,21,10],[10,2,10,7],[10,8,10,10],[11,2,11,7],[11,8,11,10],[12,2,12,7],[12,8,12,10],[14,2,14,7],[14,8,14,10],[15,2,15,7],[15,8,15,10],[38,2,38,7],[38,8,38,10],[22,2,22,7],[22,8,22,10],[26,2,26,7],[26,8,26,10],[28,2,28,7],[28,8,28,10],[23,2,23,7],[23,8,23,10],[24,2,24,7],[24,8,24,10],[0,10,0,12],[8,2,8,7],[8,8,8,10],[37,2,37,7],[37,8,37,10],[36,2,36,7],[36,8,36,10],[5,1,5,11],[7,2,7,7],[7,8,7,11],[9,2,9,7],[9,8,9,10],[19,2,19,7],[19,8,19,10],[27,2,27,7],[27,8,27,10]]}
[]
[]
[]
[]
[]
[null,"POPIS OPREME IN DEL"]
[]
[null,"Zap. št.","Opis",null,null,null,null,null,"Skupna vrednost"]
[]
[null,"1.",{"$f":"'1. Gradbena dela'!B3","v":"GRADBENA IN KLJUČAVNIČARSKA DELA"},null,null,null,null,null,{"$f":"SUM(I11:K18)","v":249175.65000000005},null,null,"€"]
[null,{"$f":"'1. Gradbena dela'!A18","v":"1.1"},{"$f":"'1. Gradbena dela'!B18","v":"RUŠITVENA IN ODSTRANJEVALNA DELA"},null,null,null,null,null,{"$f":"'1. Gradbena dela'!F43","v":35898.69},null,null,"€"]
[null,{"$f":"'1. Gradbena dela'!A45","v":"1.2"},{"$f":"'1. Gradbena dela'!B45","v":"ZIDARSKA DELA"},null,null,null,null,null,{"$f":"'1. Gradbena dela'!F55","v":25358.41},null,null,"€"]
[null,{"$f":"'1. Gradbena dela'!A57","v":"1.3"},{"$f":"'1. Gradbena dela'!B57","v":"STAVBNO POHIŠTVO"},null,null,null,null,null,{"$f":"'1. Gradbena dela'!F82","v":105792.32000000004},null,null,"€"]
[null,{"$f":"'1. Gradbena dela'!A84","v":"1.4"},{"$f":"'1. Gradbena dela'!B84","v":"SLIKOPLESKARSKA DELA"},null,null,null,null,null,{"$f":"'1. Gradbena dela'!F90","v":24324.400000000001},null,null,"€"]
[null,{"$f":"'1. Gradbena dela'!A92","v":"1.5"},{"$f":"'1. Gradbena dela'!B92","v":"KLJUČAVNIČARSKA DELA"},null,null,null,null,null,{"$f":"'1. Gradbena dela'!F96","v":28424.12},null,null,"€"]
[null,{"$f":"'1. Gradbena dela'!A98","v":"1.6"},{"$f":"'1. Gradbena dela'!B98","v":"DVOJNI POD"},null,null,null,null,null,{"$f":"'1. Gradbena dela'!F104","v":19969.170000000002},null,null,"€"]
[null,{"$f":"'1. Gradbena dela'!A106","v":"1.7"},{"$f":"'1. Gradbena dela'!B106","v":"TALNE OBLOGE"},null,null,null,null,null,{"$f":"'1. Gradbena dela'!F109","v":6145.5},null,null,"€"]
[null,{"$f":"'1. Gradbena dela'!A111","v":"1.8"},{"$f":"'1. Gradbena dela'!B111","v":"OSTALO"},null,null,null,null,null,{"$f":"'1. Gradbena dela'!F122","v":3263.04},null,null,"€"]
[]
[null,"2.",{"$f":"'2. SN stikališče'!B3","v":"SN STIKALIŠČE"},null,null,null,null,null,{"$f":"SUM(I21:K26)","v":1244365.0499999998},null,null,"€"]
[null,{"$f":"'2. SN stikališče'!A16","v":"2.1"},{"$f":"'2. SN stikališče'!B16","v":"DEMONTAŽA OBSTOJEČEGA STIKALIŠČA"},null,null,null,null,null,{"$f":"'2. SN stikališče'!F22","v":7122.6},null,null,"€"]
[null,{"$f":"'2. SN stikališče'!A27","v":"2.2.1"},{"$f":"'2. SN stikališče'!B27","v":"Stikališče"},null,null,null,null,null,{"$f":"'2. SN stikališče'!F45","v":906405.23999999987},null,null,"€"]
[null,{"$f":"'2. SN stikališče'!A47","v":"2.2.2"},{"$f":"'2. SN stikališče'!B47","v":"Rezervni deli"},null,null,null,null,null,{"$f":"'2. SN stikališče'!F68","v":172964.58999999994},null,null,"€"]
[null,{"$f":"'2. SN stikališče'!A70","v":"2.3"},{"$f":"'2. SN stikališče'!B70","v":"6,3 kV KABLI"},null,null,null,null,null,{"$f":"'2. SN stikališče'!F105","v":127555.59999999999},null,null,"€"]
[null,{"$f":"'2. SN stikališče'!A107","v":"2.4"},{"$f":"'2. SN stikališče'!B107","v":"KABELSKE POLICE"},null,null,null,null,null,{"$f":"'2. SN stikališče'!F121","v":21479.62},null,null,"€"]
[null,{"$f":"'2. SN stikališče'!A123","v":"2.5"},{"$f":"'2. SN stikališče'!B123","v":"OZEMLJITVE"},null,null,null,null,null,{"$f":"'2. SN stikališče'!F129","v":8837.4},null,null,"€"]
[]
[null,"3.",{"$f":"'3. Sekundarni sistemi'!B3","v":"SEKUNDARNI SISTEMI"},null,null,null,null,null,{"$f":"SUM(I29:K33)","v":272486.70999999996},null,null,"€"]
[null,{"$f":"'3. Sekundarni sistemi'!A16","v":"3.1"},{"$f":"'3. Sekundarni sistemi'!B16","v":"KRMILNE OMARICE"},null,null,null,null,null,{"$f":"'3. Sekundarni sistemi'!F171","v":157664.78},null,null,"€"]
[null,{"$f":"'3. Sekundarni sistemi'!A173","v":"3.2"},{"$f":"'3. Sekundarni sistemi'!B173","v":"KOMUNIKACIJSKA OMARICA"},null,null,null,null,null,{"$f":"'3. Sekundarni sistemi'!F185","v":16562.349999999999},null,null,"€"]
[null,{"$f":"'3. Sekundarni sistemi'!A187","v":"3.3"},{"$f":"'3. Sekundarni sistemi'!B187","v":"KABELSKE POVEZAVE IN OŽIČENJE"},null,null,null,null,null,{"$f":"'3. Sekundarni sistemi'!F235","v":57754.77},null,null,"€"]
[null,{"$f":"'3. Sekundarni sistemi'!A237","v":"3.4"},{"$f":"'3. Sekundarni sistemi'!B237","v":"PREDELAVA SISTEMA VODENJA ELEKTRARNE"},null,null,null,null,null,{"$f":"'3. Sekundarni sistemi'!F242","v":38424.21},null,null,"€"]
[null,{"$f":"'3. Sekundarni sistemi'!A244","v":"3.5"},{"$f":"'3. Sekundarni sistemi'!B244","v":"PREDELAVA SISTEMA LASTNE PORABE ELEKTRARNE"},null,null,null,null,null,{"$f":"'3. Sekundarni sistemi'!F252","v":2080.6},null,null,"€"]
[]
[null,"4.",{"$f":"'4. Storitve'!B3","v":"STORITVE"},null,null,null,null,null,{"$f":"SUM(I36)","v":91811.35},null,null,"€"]
[null,{"$f":"'4. Storitve'!A17","v":"4.1"},{"$f":"'4. Storitve'!B17","v":"STORITVE"},null,null,null,null,null,{"$f":"'4. Storitve'!F30","v":91811.35},null,null,"€"]
[]
[null,null,"SKUPAJ",null,null,null,null,null,{"$f":"I35+I28+I20+I10","v":1857838.76},null,null,"€"]
[]
[]
[]
[]
[]
[]
[]
[]
[]
[]
[]
[]
[]
[]
[]
[]
[]
[]
[]
[]
[]
[]
[]
[]
[]
[]
[]
[]
[]
[]
[]
[]
[]
[]
[]
[]
[]
[]
[]
[]
[]
[]
[]
[]
[]
[]
[]
[]
[]
[]
[]
[]
[]
[]
[]
[]
[]
[]
[]
[]
[]
[]
[]
[]
[]
[]
[]
[]
[]
[]
[]
[]
[]
[]
[]
[]
[]
[]
[]
[]
[]
[]
[]
[]
[]
[]
[]
[]
[]
[]
[]
[]
[]
[]
[]
[]
[null,null,null,null,null,null,null,null,{"$f":"L135*M135","v":0},{"$f":"H135*I135","v":0}]
[]
[null,null,null,null,null,null,null,null,{"$f":"L137*M137","v":0},{"$f":"H137*I137","v":0}]
[]
[]
[]
[null,null,null,null,null,null,null,null,{"$f":"L141*M141","v":0},{"$f":"H141*I141","v":0}]
[]
[null,null,null,null,null,null,null,null,{"$f":"L143*M143","v":0},{"$f":"H143*I143","v":0}]
[]
[]
[]
[null,null,null,null,null,null,null,null,{"$f":"L147*M147","v":0},{"$f":"H147*I147","v":0}]
[]
[null,null,null,null,null,null,null,null,{"$f":"L149*M149","v":0},{"$f":"H149*I149","v":0}]
[]
[null,null,null,null,null,null,null,null,{"$f":"L151*M151","v":0},{"$f":"H151*I151","v":0}]
[]
[null,null,null,null,null,null,null,null,{"$f":"L153*M153","v":0},{"$f":"H153*I153","v":0}]
[]
[null,null,null,null,null,null,null,null,{"$f":"L155*M155","v":0},{"$f":"H155*I155","v":0}]
[]
[null,null,null,null,null,null,null,null,{"$f":"L157*M157","v":0},{"$f":"H157*I157","v":0}]
[]
[]
[]
[null,null,null,null,null,null,null,null,{"$f":"L161*M161","v":0},{"$f":"H161*I161","v":0}]
[]
[]
[]
[]
[]
[null,null,null,null,null,null,null,null,{"$f":"L167*M167","v":0},{"$f":"H167*I167","v":0}]
[]
[]
[]
[null,null,null,null,null,null,null,null,{"$f":"L171*M171","v":0},{"$f":"H171*I171","v":0}]
[]
[]
[]
[]
[]
[null,null,null,null,null,null,null,null,{"$f":"L177*M177","v":0},{"$f":"H177*I177","v":0}]
[]
[null,null,null,null,null,null,null,null,{"$f":"L179*M179","v":0},{"$f":"H179*I179","v":0}]
[]
[]
[]
[]
[]
[null,null,null,null,null,null,null,null,{"$f":"L185*M185","v":0},{"$f":"H185*I185","v":0}]
[]
[]
[]
[null,null,null,null,null,null,null,null,{"$f":"L189*M189","v":0},{"$f":"H189*I189","v":0}]
[]
[null,null,null,null,null,null,null,null,{"$f":"L191*M191","v":0},{"$f":"H191*I191","v":0}]
[]
[]
[]
[]
[]
[null,null,null,null,null,null,null,null,{"$f":"L197*M197","v":0},{"$f":"H197*I197","v":0}]
[]
[null,null,null,null,null,null,null,null,{"$f":"L199*M199","v":0},{"$f":"H199*I199","v":0}]
[]
[]
[]
[]
[null,null,null,null,null,null,null,null,null,{"$f":"(J201+J105+J89+J69+J40+#REF!)*0.05","v":{"$error":"#REF!"}}]
[]
[]
[null,null,null,null,null,null,null,null,null,{"$f":"J201+J105+J89+J69+J40+#REF!+J204","v":{"$error":"#REF!"}}]

{"sheet":"0. Uvodna stran","index":2,"n_rows":114,"n_cols":2,"rows_kept":114,"cut":false,"hidden":false,"merged":[]}
[]
[]
["0.","UVODNE PRIPOMBE, OPOMBE IN ZAHTEVE"]
[]
[]
[]
[]
[]
[]
[]
["Poz.","Opis"]
[]
["I.","SPLOŠNE ZAHTEVE:"]
[]
[null,"SPLOŠNO:\nVsi projekti z načrti in vsemi grafičnimi prilogami, kot tudi ves tekstovni del, vsa poročila in vsi opisi ter sheme so sestavni del tega popisa del in jih mora ponudnik obvezno upoštevati pri sami izdelavi ponudbe. Navedene načrte, grafične priloge, ves tekstualni del, vsa poročila in vse opise ter sheme mora ponudnik upoštevati, tudi če se besedilo popisa ne sklicuje na konkretne sheme.\n\nZ oddajo ponudbe vsak ponudnik izjavlja, da je skrbno preučil vse sestavne dele razpisne dokumentacije in da je v skupno vrednost vključil vsa potrebna dela ter material, ki zagotavljajo popolno, zaključeno in celostno izvedbo projekta, kot tudi vsa dela, ki niso neposredno opisana ali našteta v tekstualnem delu popisa, a so kljub temu razvidna iz grafičnih prilog in ostalih sestavnih delov razpisne dokumentacije.\n\nVsak ponudnik z oddajo ponudbe prav tako izjavlja, da je dokumentacija popolna in da je sposoben v popolnosti kvalitetno izvesti celotno predmetno investicijo.\n\nZa vse nejasnosti mora ponudnik v razpisnem roku, ki je namenjen postavljanju vprašanj, pisno kontaktirati investitorja."]
[null,"IZVEDBA DEL:\nDela se bodo izvajala skladno z: \n- Uredbo o vzdrževalnih delih v javno korist na področju energetike (Uradni list RS, št. 37/18).\n- Uredbo o zagotavljanju varnosti in zdravja pri delu na začasnih in premičnih gradbiščih (Uradni list RS, št. 83/05 in 43/11 – ZVZD-1)\n- Pravilnikom o zahtevah za zagotavljanje varnosti in zdravja delavcev na delovnih mestih (Uradni list RS, št. 89/99, 39/05 in 43/11 – ZVZD-1) \nin ostalo merodajno zakonodajo in standardi."]
[null,"UKREPI ZA VARSTVO PRI DELU:\nVsi potrebni varnostni ukrepi in zaščite v smislu Zakona o varnosti in zdravja pri delu ter Pravilnika o listinah za  sredstva pri delu, ki veljajo pri izvajanju navedenih del. "]
[null,"PARCELA IN TRANSPORTI TER DELOVNI REŽIM: \nVsi notranji in zunanji vertikalni in horizontalni transporti do začasnih in stalnih deponij ter vsa pripravljalna, pomožna in zaključna dela pri posameznih postavkah. (tudi, če to ni posebej navedeno v posameznih postavkah). Odpadni in izkopani material se deponira na deponije, katere morajo imeti upravna dovoljenja za deponiranje posameznih vrst materiala. Ponudnik izbere lokacije posameznih deponij v skladu s tem popisom in v cenah za dela upošteva vse stroške deponiranja in transporta. Prikazane količine v tem popisu so v raščenem ali vgrajenem stanju. Posamezni koeficienti razrahljivosti morajo biti upoštevani že v ceni za enoto mere in se posebej ne obračunavajo v količinah. Pri cenah za enoto je upoštevati specifičnost  lokacije (delno utesnjenost, višina) glede na manipulacijo, delno sprotni dovoz materiala in premik strojev, mehanizacije ali delovnih naprav."]
[null,"KVALITETA MATERIALOV IN OPREME:\nVgrajeni material in oprema mora ustrezati veljavnim normativom in  predpisanim standardom, ter ustrezati kvaliteti določeni z veljavno zakonodajo ter predmetnim projektom. Ponudnik to dokaže s predložitvijo ustreznih izjav o ustreznosti, garancijskih listov in CE certifikatov pred samim vgrajevanjem, kar pomeni da je vsa dokazila potrebno predložiti nadzoru v pregled in potrditev pred izvedbo del. Pridobitev teh listin mora biti vkalkulirana v cenah po enoti.  Projektna in tehnična dokumentacija v celoti je sestavni del tega popisa."]
[null,"ZAŠČITA GRADBIŠČA IN TEHNIKE:\nV času izdelave objekta morajo biti vsi vgrajeni materiali kot tudi začasno deponiran material na delovišču in skladiščih zaščiteni pred fizičnimi poškodbami, dežjem, mrazom in hudim vetrom ter ostalimi škodljivimi vremenskimi pogoji."]
[null,"POGOJI SOGLASIJ:\nPri izvajanju del je potrebno obvezno upoštevati požarni elaborat ali načrt za predmetni objekt ter vse ostale pogoje posameznih soglasodajalcev, izdelovalcev posameznih načrtov. Pred pričetkom del mora izvajalec dodatno natančno pregledati obstoječe stanje na lokaciji del, pregledati izdelane PZI načrte, elaborate in poročila ter morebitne ugotovljene pripombe posredovati investitorju. "]
[null,"PRIPRAVLJALNA IN ZAKLJUČNA DELA:\nV vseh cenah za enoto mere morajo biti vkalkulirana popolnoma vsa pripravljalna, pomožna in zaključna dela, ki pripadajo k posamezni postavki in so potrebna za nemoteno izvajanje del! Ponudnik mora v posameznih cenah za enoto mere upoštevati vse potrebne vertikalne in horizontalne transporte ter upoštevati velikost in konfiguracijo gradbene parcele, zato bo potreben sprotni dovoz masteriala in opreme ali odvoz gradbenih odpadkov. "]
[null,"NORMATIVI ZA OBRAČUN: \nVsebina popisa je izdelana na podlagi trenutno veljavnih predpisov in standardov. Količine so izračunane na podlagi GNG (giposs) normativov in veljajo v nadaljevanju tudi kot kriterij za obračun posameznih količin (v kolikor to ni drugače določeno v posameznih postavkah)! Za doseganje predpisane kvalitete in izdelavo posameznih postopkov ter obračuna vgrajenih količin veljajo poleg ostalih pripomb tudi GNG splošna določila!"]
[null,"IZBIRA MATERIALOV IN OPREME:\nPosamezni materiali, ki so v popisu navedeni z imenom ali tipom so za ponudnika zaradi doseganja predpisane kvalitete strogo obvezni! Materiali, ki so opremljeni s citatom: \"kot na primer ali enakovredno\" ali \"kot npr. ali/oz., in enakovredno\" za ponudnika niso obvezni! Ponudnik lahko ponuja druge artikle, material in opremo, vendar samo pod pogojem, da izpolnjuje navedene kriterije, parametre in lastnosti, ki se v posamezni postavki ali splošni opombi od določenega artikla, opreme ali materiala zahtevajo! Vse vgrajene materiale in opremo, ki kakor koli odstopajo od popisa; ter vse delavniške načrte mora predhodno (pred izvedbo ali vgrajevanjem) obvezno pismeno potrditi poblaščeni projektant ali vodja projektiranja!"]
[null,"POGOJI PROJEKTA:\nPri izvajanju GOI del je obvezno upoštevati vse detajle in navodila projekta, opise posameznih materialov, naprav in opreme ter barvno karto objekta. Vse navedeno je potrebno vgrajevati po navodilih izbranega proizvajalca in po predhodni potrditvi projektanta. Vse materiale, obloge, stavbno pohištvo, naprave, opremo in druge artikle pred vgraditvijo obvezno pismeno potrdi vodja projektiranja in investitor na podlagi predhodno izdelanih ali dostavljenih vzorcev. "]
[null,"CENA ZA ENOTO: \nV vsaki ceni po enoti je potrebno zajeti vse za gotove montirane in finalno obdelane izdelke - kot kompleten izdelek v skladu s projektom, brez dodatnih del za izvedbo posamezne postavke, kompletno z izdelavo vse potrebne izvedbene delavniške in montažne tehnične dokumentacije ter detajlov izvedbe. Vse rešitve je potrebno uskladiti s vodjem projektiranja oziroma pridobiti potrditev s strani vodje projektiranja. V ceni vseh postavk je potrebno zajeti še vse ostalo iz splošnih razpisnih pogojev za izbor izvajalca, kar s tem popisom ni zajeto. POZOR: V primeru da posamezne postavke v popisu ne zajemajo celotnega opisa potrebnega za funkcionalno dokončanje postavke, mora ponudnik izvedbo le tega vključiti v ceno na enoto!\nCene na enoto morajo vsebovati vsaj: \n- vsa potrebna pripravljalna dela in čiščenje podlog;\n- merjenje na objektu;\n- vse potrebne transporte do mesta vgrajevanja;\n- skladiščenje materiala na gradbišču;\n- preizkušanje kvalitete za vse materiale, ki se vgrajujejo in dokazovanje kvalitete z izjavami o skladnosti;\n- usklajevanje z osnovnim načrtom;\n- izdelava tehnoloških risb za proizvodnjo, z detajli, ki jih je potrebno izvesti za dokončanje posameznih del, tudi če niso podrobno navedeni in opisani v popisu in načrtih, so pa nujne za pravilno funkcioniranje posameznih sistemov in elementov;\n- ves potreben glavni, pomožni, nerjaveči pritrdilni in vezni material;\n- izdelavo vseh potrebnih zaključkov;\n- vsa potrebna pomožna sredstva za vgrajevanje na objektu kot so lestve, odri, dvižne ploščadi in podobno;\n- terminsko usklajevanje del z investitorjem in/ali ostalimi izvajalci na objektu;\n- sprotna beleženja vseh sprememb, nastalih med izvedbo z vrisovanjem v PZI načrt z izdelavo tekstualnega opisa sprememb. Obveščanje odgovornega projektanta o njih s pridobitvijo njegovega soglasij nanje;\n- popravilo eventualno povzročene škode naročniku ali ostalim izvajalcem na gradbišču;\n- čiščenje prostorov in odvoz odpadnega materiala na stalno deponijo in plačilo takse;\n- zaščita izdelkov pred poškodbami do predaje naročniku del;\n- vsa dela in ukrepe po določilih zakona o varstvu pri delu;\n- fazno izvajanje del, dela se bodo izvajala po fazah, glede na faznost del, ki bo določena s terminskim planom in navodilih investitorja;\n- izvajanje del v nepostedni bližini delov pod 6,3 kV napetostjo;\n- pisni sporazum iz varstva pri delu;\n- sodelovanje pri gradbenem in projektantskem nadzoru ter tehničnem pregledu, priprava primopredajne dokumentacije.\n\nVse mere in število obrtniških izdelkov je obvezno predhodno kontrolirati na objektu."]
[null,"MANJKAJOČI DELI POPISA:\nPosamezne postavke so iz popisa lahko izpuščene predvsem zaradi vsebine in zahtevkov razpisnih pogojev investitorja, ki so za ponudnika strogo obvezni. Eventualne manjkajoče postavke mora ponudnik upoštevati pri oblikovanju ponujene cene na enoto mere, ostalih drugih postavk; npr.: vsa čiščenja med posameznimi fazami, zaščite, varovanja, pomožna in spremljevalna dela ... Za ta dela izvajalcu stroški posebej ne pripadajo, ker jih mora zajeti v ceno za enoto mere. "]
[null,"NEPREDVIDENA DELA:\nEventualna manjkajoča oz. nepredvidena dela, ki s tem popisom niso zajeta, se izvedejo po predhodnem dogovoru z nadzornim organom in obračunajo po dejanskih količinah, po predhodni odobritvi enotne cene s strani investitorja."]
[null,"UREDITEV DEPONIJ GRADBENEGA MATERIALA (če jih je potrebno organizirati na zelenicah): \nPovršino, namenjeno deponiranju je potrebno utrditi do ustrezne trdnosti, glede na deponiran material. Zlaganje mora ustrezati lastnostim materialov, preprečeno mora biti nehoteno premikanje. Najvišja dovoljena višina ročno zloženih skladovnic je 2 m z izjemo zlaganja lažjih kosov materiala. "]
[null,"DOLOČITEV VRSTE IN IZVEDBE GRADBENIH ODROV:"]
[null,"Cevni odri: Izdelani morajo biti v skladu z zahtevami standarda SIST HD 1004. Navodila za montažo in uporabo odrov morajo biti izdelana po zahtevah standarda SIST EN 1298 in morajo biti na razpolago na gradbišču ves čas uporabe odrov. Oder mora biti sestavljen in uporabljen v celoti v skladu z navodili tako, da je onemogočen nezaželen premik, porušitev ali prevrnitev. Uporaba premičnih naslonskih lestev za dostop na oder je prepovedana. "]
[null,"Lahki premični odri: Izdelani morajo biti v skladu z zahtevami standarda SIST HD 1004. Navodila za montažo in uporabo odrov morajo biti izdelana po zahtevah standarda SIST EN 1298 in morajo biti na razpolago na gradbišču ves čas uporabe odrov. Oder mora biti sestavljen in uporabljen v celoti v skladu z navodili tako, da je onemogočen nezaželen premik, porušitev ali prevrnitev. Uporaba premičnih naslonskih lestev za dostop na oder je prepovedana. Zagotoviti zadostno število ustreznih odrov."]
[null,"Lestve: Na gradbišču se smejo uporabljati atestirane tipske lestve, ki so izdelane po veljavnih predpisih in opremljene z izjavo o skladnosti."]
[null,"Prislonske lestve: Največja dovoljena višina je 8 m. Izbirati je potrebno lestve takšne dolžine, da segajo 1 m čez oviro. Lesene lestve, ki so daljše od 4 m morajo biti trdno vezane z železnimi zategami. Delo na lestvi v višini nad 3 m zahteva varovanje proti padcu (varnostni pas, lovilna vrv, pritrjena lestev)."]
[null,"Dvokrake lestve: Največja dovoljena višina je 3 m. Lestve morajo biti stabilne, nepoškodovane, z varnostno vrvico med krakoma in nerazdružljivim spojem med krakoma."]
[]
["II.","RUŠITVENA IN ODSTRANJEVALNA DELA"]
[]
[null,"Pri izvajanju rušenja posameznih delov objekta je potrebno obvezno upoštevati morebiti izdelan \"Rušitveni načrt\" ali \"Načrt gospodarjenja z gradbenimi odpadki\" za predmetni objekt ter vse ostale pogoje izdelovalcev posameznih načrtov. Pred pričetkom del in pred izdelavo ponudbe mora izvajalec dodatno pregledati obstoječe stanje na objektu in stanje obstoječih konstrukcij, ki se rušijo in projektantu ali nadzorni službi posredovati eventualne pripombe. "]
[null,"Rušitvena dela se izvajajo v dveh fazah. \nV 1. fazi pred pričetkom elektro montažnih del se ruši obstoječe 35 kV stikališče, obstoječa okna in vrata . \nV 3. fazi se ruši obstoječe 6,3 kV stikališče."]
[null,"Vse potrebne zaščite delovne sile, strojev in neposredne okolice ter obstoječih naprav v času izvajanja rušitvenih del."]
[null,"Z ruševinami se ravna v skladu z Uredbo o ravnanju z odpadki (UL RS, št. 55/08). Pred odvozom v stalne deponije se ruševine sortirajo v skladu s klasifikacijami iste Uredbe in Elaborata/Načrta gospodarjenja z gradbenimi odpadki."]
[null,"Količine posameznih postavk so prikazane v vgrajenem stanju. Posamezni koeficienti razrahljivosti morajo biti upoštevani v ceni na E.M. Za izmere za rušenja, predelavo in transport posameznih konstrukcij se upošteva prostornina v neporušenem stanju (po prostornini konstrukcije na objektu). Faktor razrahljivosti je potrebno smiselno upoštevati v cenah za enoto mere posameznih pozicij."]
[null,"Delavci na nezavarovanih višinah morajo biti zavarovani v skladu z predpisi in zakonom o Varstvo pri delu (vsa varovala, ki služijo za uporabo osebne zaščitne opreme v skladu z SIST EN 354, SIST EN 355, SIST EN 360, SIST EN 362 in Zakonom o varstvu in zdravju pri delu.). \n"]
[]
["III.","ZIDARSKA DELA"]
[]
[null,"Zidarska dela se morajo izvajati po določilih veljavnih tehničnih predpisov in normativov v soglasju z obveznimi standardi."]
[null,"Vgrajeni materiali za ta dela morajo po kvaliteti ustrezati določilom veljavnih tehničnih predpisov in sl. standardov."]
[null,"Kvaliteta malt za zidarska dela mora ustrezati določilom veljavnih tehničnih predpisov in standardov."]
[null,"Čiščenje prostorov, opreme in delovnih naprav po končanih posameznih fazah je potrebno vkalkulirati v E.M."]
[null,"Dopustna odstopanja za pravokotnost, površinsko ravnost in dimenzije gradbenih elementov veljajo določila DIN 18202."]
[null,"Vsa dela morajo biti izvedena na način, ki omogoča in zagotavlja predpisano varnost, stabilnost in funkcionalnost ter življensko dobo posameznega elementa. "]
[null,"Ometane ali sanirane površine morajo biti vertikalno in horizontalno ravne z ostrimi robovi na stikih sten in na vogalih (če ni s popisom in projektom drugače predvideno)."]
[null,"Vse zidarske odre je potrebno vkalkulirati v ceno za enoto mere. "]
[null,"Posebna opozorila pri sanacijio med deli poškodovane fasade"]
[null,"- Temperatura pri izvedbi: vsaj +5° C podlage in zraka ter do + 35° C.\n- Izogibamo se delu ob neposrednem osončenju, pri močnem vetru in dežju.\n- Dodajanje primesi ali aditivov ni dovoljeno.\n- Lepila ne smemo nanašati na fasadne plošče, ki so bile dalj časa (2 tedna) izpostavljene UV sevanju (porumenele ali obledele plošče). Take plošče ponovno obrusimo in odprašimo.\n- Pred nanosom naslednjih slojev upoštevamo min. 2 – 3 dnevni čas sušenja (ob temperaturi 20° C) pri čemer je pomembno, da je površina enakomerno suha (brez bolj vlažnih, temnejših lis). "]
[null,"APNENI GROBI FASADNI OMET\nPesek: Za pripravo malt, ki so vidne (nebeljene) in dopolnjujejo originalno stanje, je potrebno pozorno izbrati ustrezno barvo in granulat peska, ki naj bo čim bolj podoben originalu. Če je v originalu pran rečni pesek, je priporočljivo dodati tudi del tega peska iz bližnjih vodotokov."]
[null,"Vezivo: Gašeno apno pridobimo z gašenjem živega apna. Gašeno apno naj bo čim starejše in uležano, najmanj 3 mesece, priporočeno vsaj 1 leto. Med uležavanjem ne sme zamrzniti. Pred pripravo se preveri, ali je apno dovolj čisto in brez večjih grudic. Sicer se mora presejati skozi 2 mm sito, odvisno od finosti malte."]
[null,"Malta iz gašenega apna: Malta iz gašenega apna se uporablja za izvedbo zaključnih ometov, dekorativnih ometov, štukatur itd. Običajno razmerje gašeno apno : pesek = 1 : 2,5 ali 1 : 3, ki pa jo izkušeni izvajalec lahko prilagaja. Debelina plasti ometa je največ 1,5 cm oziroma trikratna debelina največjih zrn peska v malti. Vode se v malto dodaja čim manj! Boljše od navadne vode je dodajanje apnene vode. Bolj so malte fine (npr. štukmarmor), več je v njih veziva."]
[null,"Ometavanje: \nOmetavamo vedno na navlaženo podlago, vendar tako navlaženo, da se vlaga vpije v malto in kamen. Voda ne sme biti na površini, s tem je sprijemljivost onemogočena. Voda, s katero vlažimo zid, je lahko tudi apnena. Ometavamo v dveh slojih. Podložni sloj je iz peska 0–4, ki mu dodamo gašeno apno v razmerju apno : pesek = 1 : 3 ali malta iz živega apna (po navodilih priprave te malte). Zid enakomerno omečemo, počakamo vsaj 1 dan, da se posuši, če je možno pa čim dlje. Nato vdolbine zidu omečemo ponovno. Izravnavanje ponavljamo, vse dokler ni podlaga izravnana z ostalo fasado. Debelina posameznega sloja ometa je 3x debelina največjih zrn peska. Pri granulaciji peska 0–4 torej 12 mm.\nZaključni sloj je nanešen v enakomerni debelini ca 2–3 mm. Zariban omet nanašamo z žlico in ga na koncu enakomerno zaribamo z leseno gladilko.\nZalikan omet nanašamo z zidarsko žlico, s katero tudi zalikamo površino do željene oblike – z vidnimi potezami žlice ali v povsem gladko površino.\nUspeh izvedbe je v kakovosti negovanja, čim počasnejšem strjevanju in klimatskih pogojih - temperatura ne sme pasti pod 7 ali narasti preko 20 ºC vsaj 3 tedne. Vse obdobje negovanja ometa naj bo omet zaščiten pred dežjem, vetrom in soncem s tkanino, ki jo je možno ob nepredvideni spremembi temperature vlažiti in s tem prilagajati mikroklimo. Ko se omet suši, se ga dodatno vlaži z enakomernim pršenjem, najbolje z apneno vodo. "]
[]
["IV.","KLJUČAVNIČARSKA DELA"]
[]
[null,"Ključavničarska dela morajo biti izvršena po določilih veljavnih normativov in v soglasju z obveznimi standardi."]
[null,"Material za ta dela in vgradnjo okovja morajo po kvaliteti ustrezati določilom veljavnih standardov."]
[null,"Pri izvajanju ključavničarskih del je upoštevati vsa pripravljalna, pomožna, spremljevalna in zaključna dela. "]
[null,"V ceno za enoto mere morajo biti vračunani stroški za izdelavo delavniških načrtov ter detajlov za izvedbo posameznih konstrukcijskih elementov in izdelava predizmer na objektu.  "]
[null,"Pri izdelavi ključavničarskih del in montaži le teh je potrebno upoštevati detajle in sheme PZI projekta; Izvajalec del je pred izvedbo dolžan izdelati delavniške načrte, katerih vse detajle in delavniške risbe pred izvedbo pisno potrdi pooblaščeni inženir. Mere kontrolirati in po potrebi prilagoditi pri montaži na terenu. Ob montaži upoštevati celotno projektno dokumentacijo."]
[null,"MATERIAL: JEKLENA KONSTRUKCIJA: Ves vgrajeni material (pločevine, profili, dodajni material, spojna sredstva ...) mora biti opremljen s potrdili o kvaliteti v skladu z zakonom o standardizaciji. Potrdila o kvaliteti morajo biti stopnje najmanj 3.1. v skladu s standardom EN 10204.  V vseh fazah izdelave in montaže nosilne jeklene konstrukcije mora biti zagotovljena sledljivost materiala. Osnovni material (profili, pločevine) elementov jeklenih konstrukcij je predviden v kvaliteti S235JR po SIST EN 10025, vijačni material je predviden v kvaliteti 8.8 in 10.9."]
[null,"Varilne deformacije upošteva izvajalec jeklenih konstrukcij, zvare mora izvajati atestirani varilec. Zvari so C kvalitete po EN 25817, neoznačeni zvari s A= 0,70 x Tmin, pri čemer je Tmin tanjša pločevina v spoju. Antikorozijska zaščita mora biti v celoti zajeta v ceno ključavničarskih del (tudi, če to ni posebej opisano ali poudarjeno v posamezni postavki), nadaljnji zaščitni opleski so predmet slikopleskarskih del. Opomba: 3,00 do 5,00 % kalo za zvare in rezanje je upoštevan v količini posameznih konstrukcij."]
[null,"ZAŠČITA PRED KOROZIJO ZA VROČECINKANE KONSTRUKCIJE: Pri izvajanju ključavničarskih konstrukcij, ki so vročecinkane, je potrebno upoštevati vsa pripravljalna, pomožna, spremljevalna in zaključna dela. Izvajalec je dolžan izdelati delavniško dokumentacijo delavniških načrtov in detajlov za izvedbo posameznih konstrukcijskih elementov in izdelavo predizmer na objektu. Delavniško dokumentacijo potrdi pooblaščeni inženir gradbenih konstrukcij!\nKakovost izvedbe vročega pocinkanja se izvaja v skladu s standardom SIST EN ISO 1461."]
[]
["V.","STAVBNO POHIŠTVO"]
[]
[null,"Pri izvajanju in montaži stavbnega pohištva je upoštevati vsa pripravljalna dela, pomožna dela zaključna dela."]
[null,"V ceno za enoto mere morajo biti vračunani stroški za snemanje predizmer na objektu,  za izdelavo delavniških načrtov ter eventualno potrebnih detajlov za izvedbo posameznih konstrukcijskih elementov.  "]
[null,"Pred izvedbo - montažo stavbnega pohištva je z izvajalcem gradbenih in montažnih del potrebno uskladiti mere posameznih odprtin za okna in vrata. "]
[null,"Varovalni odri ali dvižne ploščadi, ki služijo varovanju življenja izvajalcev ter ostalih na gradbišču in niso posebej navedena v tem popisu se za čas izvajanja ne obračunavajo posebej, ampak jih je potrebno upoštevati v cenah za enoto posameznih postavk, v kolikor to ni v popisu posebej opisano in označeno. "]
[null,"Monterji, ki delajo na višini morajo biti zavarovani v skladu z predpisi in zakonom o Varstvo pri delu (vsa varovala, ki služijo za uporabo osebne zaščitne opreme v skladu z SIST EN 354, SIST EN 355, SIST EN 360, SIST EN 362 in Zakonom o varstvu in zdravju pri delu.). "]
[null,"Pred naročilom in jemanjem izmer morajo dobavitelji ali proizvajalci stavbnega pohištva na gradbišču uskladiti vse detajle, ki so povezani z montažo stavbnega pohištva; velikosti odprtin, pozicijo montaže v špaletah, detajle spajanja z zunanjimi in notranjimi policami, eventualnimi dodatnimi oblaganji posameznih špalet ter tesnenjem in zaključkom ob zidovih in ometih. Pred izdelavo v času jemanja predizmer na delovišču se je potrebno dogovoriti glede eventualne izvedbe in namestitve  senčil in komarnikov. Pred izdelavo projektant ali nadzor pismeno obvezno potrdi način izvedbe in detajle!  Celotno stavbno pohištvo mora biti izdelano iz tipiziranih  sistemov  v smislu kvalitete, ki mora ustrezati evropskim predpisom, standardom in v nadaljevanju opisanim sistemom izdelave."]
[null,"Izvedba posameznih sistemov oken in vrat ter drugega stavbnega pohištva  mora biti usklajena z opisi v detajlih PZI projekta in shemami vrat in oken,  posameznih kosovnic in potrjenih delavniških načrtih. Pri izdelavi stavbnega pohištva in pri montaži oken je upoštevati detajle in sheme PZI projekta, posamezne tehnične kosovnice projekta ter proizvajalca/ponudnika, katere potrdi nadzor. Detajli in posamezni izračuni so za izvajalca obvezni; kakršna koli odstopanja od projekta so dovoljena le v soglasju in po predhodni pisni odobritvi odgovornega projektanta in investitorja. Izvajalec je dolžan pred montažo stavbnega pohištva/vrat le te predati v pregled nadzoru in od njega pridobiti pisno soglasje.   "]
[null,"Prašno barvanje: Pri barvanju alu površin stavbnega pohištva je potrebno upoštevati debelino sloja 65 +- 15 µm za osnovne sloje. Dodatne sloje je potrebno nanesti prekrivno. Za kalkulacijo veljajo v popisu del navedeni barvni toni in stopnje leska. Barvne vzorce je na zahtevo potrebno predložiti nadzoru, investitorju; predhodno jih pisno potrdi projektant! Predviden barvni ton silver metalic (RAL 9006)"]
[null,"Pločevine: Tudi, če v popisu del ni posebej navedeno, morajo za funkcionalno izvedbo v E.M vključeni tudi vsi potrebni priključki in zaključki, pritrditvena sidra, podkonstrukcije, pomožni, izolativni in tesnilni materiali. Priključki in zaključki morajo biti izdelani iz vsaj 2 mm debele alu pločevine.\n"]
[null,"Dokazila in atesti: Za vse vgrajene materiale je potrebno še pred samo izvedbo na zahtevo nadzora dostaviti ateste o kvaliteti, izjave o lastnostih vgrajenih materialov in potrebne meritve po končanih delih."]
[null,"Okovje za odpiranje po vertikalni in horizontalni osi: Skriti položaj (pri alu), s škarjastim krmilom, dolžina prilagojena potrebi širine krila, kompletno s kotnim kipnim in škarjastim ležajem, kotno napravo za preusmerjanje z zaščito pri napačni uporabi in proti vlomu, zapah zgoraj in spodaj skupaj z naletno zaščito, enoročna uporaba s komornim gonilom z zaskočišči v odprtih položajih, zakrito postavljen energijsko izčrpalen omejevalnik odpiranja do max. 90° odpiralnega kota, z blažilnikom zasuka preko celotne odprtine v ovalni obliki prečnega prereza. Okenska kljuka: okenska kljuka po izboru naročnika.\n"]
[]
["VI.","TLAKARSKA DELA"]
[]
[null,"Pri izvajanju tlakarskih del je upoštevati vsa pripravljalna dela, pomožna dela zaključna dela. Dela je potrebno izvajati v skladu z  tehničnimi predpisi in normativi v soglasju z obveznimi standardi za polaganje tlakov. Pri posameznih postavkah iz tega poglavja mora ponudnik v cenah za enoto mere obvezno zajeti, upoštevati in vkalkulirati še: "]
[null,"Pred polaganjem talne obloge je predhodno pregledati delovno površino in izvesti potrebna preddela; odstraniti obstoječe talne pobloge, površine očistiti od emulzij, lepil in mastnih madežev, pregledati niveleto tlaka in pomeriti stopnjo vlage. Vse našteto mora biti zajeto v E.M. posamezne postavke."]
[null,"Pred polaganjem izvajalec skupaj z nadzorom pregleda površine oblaganja."]
[null,"Minimalni izvedbeni pogoji za vgradnjo epoksidnih tlakov:\n¨ Izvedeni epoksidni tlak se lahko mehansko obremeni po ca. 3 do 4 dneh kemijsko odpornost pa doseže po ca. 7 do 10 dneh pri temperaturi 20°C. Pranje in čiščenje epoksidnega tlaka z vodo je možno šele po kemijski utrditvi tlaka.\n¨ Temperatura podlage min. 10°C oz. 3°C nad temperaturo rosišča, temperatura zraka v prostoru min.10°C.\n¨ V primeru izvedbe emulzijskih epoksidnih sistemov: Temperatura podlage min. 15°C oz. 3°C nad temperaturo rosišča, temperatura zraka v prostoru min.15°C.\n¨ Relativna vlaga zraka v prostoru max. 75 %.\n¨ Vsebnost vlage v cementni podlagi do 4,5 % CM.\n¨ Oprijemna trdnost podlage  1,5 N/mm2.\n¨ Tlačna trdnost AB podlage  25 N/mm2.\n¨ Tlačna trdnost cementnega estriha 30 N/mm2.\n¨ Ravnost osnovne podlage v skladu z DIN EN 18202 (tabela 3, vrstica 3).\n¨ Upoštevati je potrebno navodila iz tehničnih listov o produktih in priporočila izbranega proizvajalca v zadnji izdaji izbranega proizvajalca.  Izgled in stopnjo protidrsnosti je potrebno na osnovi vzorca predhodno pisno potrditi s strani nadzora in projektanta.\n¨ Obvezna je izvedba opisanega sistema, vendar poljubnega proizvajalca."]
[null,"Delo obrtnika obsega:\n- dobavo osnovnega materiala za talne obloge\n- dobavo ostalega materiala\n- masa za izravnavo podloge\n- snemanje izmer v objektu\n- pregled in čiščenje podlag\n- nanašanje izravnalne mase\n- vsa dela v delavnici in na objektu z dajatvami\n- prevoz materiala in orodja na objekt, z nakladanjem, razkladanjem \n- polaganje talne obloge\n- popravilo zidov ali stenskih oblog, če se poškodujejo\n- vsa dela in ukrepe po določilih veljavnih predpisov varstva pri delu"]
[null,"Izvajalec mora nadzoru predložiti vzorce v potrditev. Ves vgrajeni material mora imeti ustrezne izjave o skladnosti"]
[]
["VII.","SLIKOPLESKARSKA DELA"]
[]
[null,"Pri izvajanju slikopleskarskih del je potrebno upoštevati vsa pripravljalna dela, pomožna in zaključna dela. Pri posameznih postavkah montažnih sten in stropov iz tega poglavja mora ponudnik v cenah za enoto mere obvezno zajeti, upoštevati in vkalkulirati še: "]
[null,"Delovni odri, ki služijo varovanju življenja, izvajalcev ter ostalih na gradbišču in niso posebej navedena v tem popisu se za čas izvajanja ne obračunavajo  posebej, ampak jih je potrebno upoštevati v cenah za enoto posameznih postavk, v kolikor to ni v popisu posebej opisano in označeno. "]
[null,"Delavci, ki delajo na višini, morajo biti zavarovani v skladu z predpisi in zakonom o Varstvo pri delu (vsa varovala, ki služijo za uporabo osebne zaščitne opreme v skladu z SIST EN 354, SIST EN 355, SIST EN 360, SIST EN 362 in Zakonom o varstvu in zdravju pri delu). Upoštevati je potrebno splošna navodila in predpise iz varstva pri gradbenih in slikopleskarskih delih, varovanje dihal z zaščitno masko in zaščita oči z zaščitnimi očali ali ščitnikom za obraz je potrebno le pri ročnem ali strojnem brušenju vgrajene mase."]
[null,"Na  opleskanih površinah se ne smejo poznati sledovi od slikopleskarskega orodja  in ton mora biti enoten. "]
[null,"Pred pričetkom je potrebno predhodno pregledati delovno površino in izvesti potrebna preddela; površine očistiti od prahu, emulzij, premazov opažev in mastnih deležev, pregledati niveleto površin in pomeriti stopnjo vlage. Vse našteto mora biti zajeto v E.M. posamezne postavke."]
[null,"V ceni je potrebno upoštevati vse zaščite pri slikanju ali pleskanju med posameznimi različnimi nanosi barv: bandažni trak, začasno odstranjevanje in ponovno nameščanje, zaščito ostalih površin, naprav, tal,…"]
[null,"Pleskarski izdelki (kit, barve in ostali premazi) morajo ustrezati sledečim parametrom in zahtevam: paroprepustnost izravnalnih mas po EN ISO 7783-2; koeficient μ<40;  vrednost Sd (d = 3 mm) <0,12; (m) razred I (visoka paroprepustnost). Paroprepustnost končnih zidnih premazov po EN ISO 7783-2; koeficient μ<100;  vrednost Sd (d = 3 mm) <0,01; (m) razred I (visoka paroprepustnost). "]
[null,"PRIPRAVA PODLAGE; Podlaga pred nanosom izravnalne mase mora biti trdna, suha in čista, brez slabo vezanih delcev, prahu, v vodi lahko topnih soli, mastnih oblog in druge  umazanije. Prah in drugo neoprijeto umazanijo posesamo ali odstranimo z  ometanjem. Z zidnimi plesnimi okužene površine pred nanosom izravnalne mase obvezno dezinficiramo. Novo vgrajene omete in izravnalne mase v normalnih pogojih (T = +20 ºC, rel. vl. zraka = 65 %) sušimo oziroma zorimo najmanj 1 dan za vsak mm debeline, za betonske podlage pa je čas sušenja minimalno en mesec (navedeni časi sušenja podlage veljajo za normalne pogoje: T = +20 ºC, rel. zr. vl. = 65 %). \nZ že prebarvanih površin odstranimo vse v vodi lahko in hitro razmočljive barvne nanose ter opleske z oljnimi barvami, laki ali emajli.\nPred prvim barvanjem na vse površine je obvezen osnovni premaz z ustrezno emulzijo. Osnovni premaz nanesemo s čistim orodjem; ročno s čopiči in valjčki ali strojno z brizganjem. Z barvanjem lahko v normalnih pogojih (T = +20 ºC, rel. vl. zraka = 65 %) pričnemo 6 -12 ur po nanosu osnovnega premaza."]
[null,"VGRADNJA IZRAVNALNIH MAS; Maso običajno vgrajujemo v dveh slojih, pri čemer naj debelina posameznega sloja ne presega 1 do 2 mm, skupna debelina dvoslojnega nanosa pa 3 mm. Maso nanašamo ročno – z nerjavečo jekleno gladilko – in jo po obdelovani ploskvi razvlečemo. Pri tem skušamo površino čim bolj zgladiti. Če je potrebno, odvečni material z gladilko odvzamemo in odstranimo. Prvi sloj pred nanosom drugega, enako pa tudi drugi oziroma zaključni sloj, obrusimo s finim brusnim papirjem. Brušenje je lahko ročno ali strojno. Če površine pripravljamo za zahtevnejše dekorativne obdelave, uporabimo brusni papir štev. 150, v drugih primerih pa izbiramo med brusnimi papirji štev. 80 in 120. Vgradnja izravnalne mase je možna le v primernih mikroklimatskih pogojih: temperatura zraka in zidne podlage naj ne bo nižja od +5 ºC in ne višja od +35 ºC, relativna vlažnost zraka pa ne višja od 80 %. "]
[null,"NANAŠANJE BARVE; Barvo nanašamo v dveh slojih v razmaku 4 – 6 ur (T = +20 ºC, rel. vl. zraka = 65 %), s čistim, ustreznim in s tehničnim listom predpisanim orodjem za poldisperzijsko ali disperzijsko barvo. Posamezno zidno ploskev barvamo brez prekinitev od enega do drugega skrajnega robu. Nedostopne površine (koti, vogali, žlebovi, ozke špalete, ipd.) vedno obdelamo najprej. Barvanje je možno le v primernih razmerah oziroma v primernih mikroklimatskih pogojih: temperatura zraka in zidne podlage naj bo od +5 ºC do +35 ºC, relativna vlažnost zraka pa ne višja od 80 %."]
[]
["VIII.","ELEKTROMONTAŽNA DELA"]
[]
[null,"Pogoj za pričetek elektromontažnih del so končana rušenja obstoječega 35 kV stikališča, sanirane poškodovane površine sten, stropov in tal tel odprašeni prostori."]
[null,"Montaža uvodnic se lahko na nekaterih mestih izvede večkrat (odvisno od faznosti gradnje). Cena dodatnih demontaž in montaž, mora biti upoštevana v enotnih cenah."]
[null,"Pred začetkom polaganja kablov je potrebno preveriti prehodnosti vseh cevi, kabelkih kineti, kabelskih polic in ugotovitve zapisati v gradbeni dnevnik. O ugotovitvah kontrole je potrebno pred pred pričetkom del seznaniti odgovorne predstavnike investitorja (naročnika)."]

{"sheet":"1. Gradbena dela","index":3,"n_rows":124,"n_cols":6,"rows_kept":124,"cut":false,"hidden":false,"merged":[[2,1,2,5],[123,1,123,4],[42,1,42,4],[81,1,81,4],[54,1,54,4],[121,1,121,4],[89,1,89,4],[95,1,95,4],[103,1,103,4],[108,1,108,4]]}
[]
[]
["1.","GRADBENA IN KLJUČAVNIČARSKA DELA"]
[]
[]
[]
[]
[]
[]
[]
["Poz.","Opis opreme ali storitev","Enota","Količina","Cena na enoto (€)","Vrednost (€)"]
[]
[null,"OPOMBE:"]
[null,"Ponudnik mora v cenah na enoto mere tega poglavja upoštevati vse smiselne in pripadajoče pripombe, zahteve in pogoje, ki so navedeni v poglavju \"UVODNE PRIPOMBE\" tega popisa.\n\nPred rušenjem je potrebno vse obstoječe dele stikališča in ostalih območij ob gradbišču zaščititi tako, da bosta stikališče in elektrarna lahko nemoteno delovali. Pri rušenju ohraniti obstoječe izpuste za ozemljitve. Vse morebitne poškodbe sanirati.\nRušitve se bodo izvajale sukcesivno, glede na dane možnosti in v dogovoru z investitorjem.."]
[null,"Vsi odpadki, ki bodo nastali pri rušitvi, bodo naloženi na prevozno sredstvo in odpeljani na stalno gradbeno deponijo."]
[null,"Ponudnik mora pridobiti ustrezne evidenčne liste za posamezne gradbene odpadke. Odpadno železo in baker se odloži na deponijo pri naročniku in naročnik poskrbi za ustrezne evidenčne liste."]
[]
["1.1","RUŠITVENA IN ODSTRANJEVALNA DELA"]
[]
["1.1.1","Začasna protiprašna stena"]
["1.1.1.1","Leseni smrekovi stebri 6200x120x120 cm, gradbena kvaliteta","kos",25,104.29,{"$f":"ROUND(D21*E21,2)","v":2607.25}]
["1.1.1.2","OSB/3 plošče 2500x1250x22 mm","kos",60,115.88,6952.8]
["1.1.1.3","Jekleni, pocinkani vezni element 100x100x90mm, kotni, težka izvedba","kos",96,41.72,4005.12]
["1.1.1.4","Zatezna sidra M12x90","kos",200,24.1,4820]
["1.1.1.5","Lesena vrata s podpojem, kljuko in ključavnico, krilo 2030x1050x39 mm,    protiprašno tesnilo","kos",2,417.15,834.3]
["1.1.1.6","Vijaki za pritrjevanje OSB, poliuretanska pena za zatesnitev špranj, ostali drobni montažni material","kpl",1,417.15,417.15]
["1.1.1.7","Demontaža začasne protiprašne stene po končanih delih, odvoz lesa, OSB in vrat na skladiščenje pri naročniku znotraj HE Medvode.","kpl",1,2363.85,2363.85]
[]
["1.1.2","Rušenje in odstranjevanje"]
["1.1.2.1","Odstranitev obstoječe linolej obloge tal.","m2",200,4.6399999999999997,{"$f":"ROUND(D30*E30,2)","v":928}]
["1.1.2.2","Demontaža jeklenih konstrukcij do UNP80 na višini 0-6 m (Klasifikacijska številka odpadka: 170405).","kg",10700,0.37,3959]
["1.1.2.3","Rušenje AB zidov debeline do 8cm na višini 0-6 m (Klasifikacijska številka odpadka: 170101).","m2",450,8.34,3753]
["1.1.2.4","Rušenje AB plošč debeline do 8cm na višini 3-5 m. (Klasifikacijska številka odpadka: 170101).","m2",74,15.76,1166.24]
["1.1.2.5","Zaščita zunanjih afaltiranih in travnatih površin pred demontažo obstoječih oken","kpl",1,509.85,509.85]
["1.1.2.6","Demontaža obstoječih oken dimenzij 1620 x 5440 mm, fiksna zasteklitev v betonskih okvirjih (Klasifikacijska številka odpadka: 170102 in 170202).","kos",4,203.94,815.76]
["1.1.2.7","Demontaža obstoječih oken dimenzij 1620 x 2710 mm, fiksna zasteklitev v betonskih okvirjih (Klasifikacijska številka odpadka: 170102 in 170202).","kos",6,135.34,{"$f":"ROUND(D36*E36,2)","v":812.04}]
["1.1.2.8","Demontaža obstoječih oken dimenzij 1560 x 1410 mm, leseno, dvokrilno okno (Klasifikacijska številka odpadka: 170201 in 170202).","kos",1,90.85,90.85]
["1.1.2.9","Demontaža obstoječih lesenih dvokrilnih vrat dimenzij 1400 x 2500 mm (Klasifikacijska številka odpadka: 170201).","kos",3,111.24,333.72]
["1.1.2.10","Demontaža obstoječih notranjih vrat, različnih dimenzij (Klasifikacijska številka odpadka: 170201).","kos",12,60.26,723.12]
[null,"Demontaža obstoječih zunanjih vrat, različnih dimenzij (Klasifikacijska številka odpadka: 170405).","kos",2,148.32,{"$f":"ROUND(D40*E40,2)","v":296.64}]
["1.1.2.11","Demontaža obstoječih kabelskih lestev kabelskem prostoru  (Klasifikacijska številka odpadka: 170405).","kg",250,2.04,510]
[]
[null,{"$f":"\"SKUPAJ \"&B18 &\":\"","v":"SKUPAJ RUŠITVENA IN ODSTRANJEVALNA DELA:"},null,null,null,{"$f":"SUM(F18:F42)","v":35898.69}]
[]
["1.2","ZIDARSKA DELA"]
[]
["1.2.1","Popravilo notranjih špalet oken in vrat, sanirni omet, kovinski vogalniki,…","m2",50,88.07,{"$f":"ROUND(D47*E47,2)","v":4403.5}]
["1.2.2","Popravilo zunanjih špalet oken in vrat, grobi apneni fasadni omet, zariban.","m2",40,157.59,6303.6]
["1.2.3","Popravilo poškodovanih notranjih zidov po končanih rušitvenih delih s sanirnim ometom","m2",25,38.93,973.25]
["1.2.4","Zapiranje obstoječih odprtin v AB plošči, dimenzije 1200 x 400 x 120mm, vrtanje lukenj za armaturne palice, vstavljanje armature cca 15 kg fi12, izdelava opaža, betoniranje.","kos",10,444.96,4449.6000000000004]
["1.2.5","Popravilo poškodovane talne plošče po končanih rušitvenih delih s sanirno malto ali samorazlivno talno izravnalno maso, debelina nanosa do maks. cca 2 cm.","m2",170,40.79,6934.3]
["1.2.6","Izdelava izvrtin fi150 v AB ploščo, debelina do 15 cm","kos",60,36.15,2169]
["1.2.7","Izdelava izvrtin fi200 v AB ploščo, debelina do 15 cm","kos",3,41.72,125.16]
[]
[null,{"$f":"\"SKUPAJ \"&B45 &\":\"","v":"SKUPAJ ZIDARSKA DELA:"},null,null,null,{"$f":"SUM(F45:F54)","v":25358.41}]
[]
["1.3","STAVBNO POHIŠTVO",null,null,null,{"$f":"ROUND(D57*E57,2)","v":0}]
[null,"OPOMBA:\nZa vrata s predpisano požarno odpornostjo mora dobavitelj priložiti Izjavo izvajalca o vgradnji in certifikate vgrajenih materialov "]
["1.3.1","Okno O1 dimenzij 1620 x 5440 mm:\nIzdelava, dobava in montaža alu okna izdelana iz alu lakiranih profilov, RAL 9006. Zastekljena so z izolacijskim ornamentnim steklom Rosa bela 6/14/6/14/6 mm, Ug=0,6 W/m2K. Dobavi in vgradi se tudi zunanja alu okenska polica R.Š.150 mm izdelana iz alu pločevine deb.1,5 mm.","kos",3,3727.65,11182.95]
["1.3.2","Okno O1 dimenzij 1620 x 2710 mm:\nIzdelava, dobava in montaža alu okna izdelana iz alu lakiranih profilov , RAL 9006. Zastekljena so z izolacijskim ornamentnim steklom Rosa bela 6/14/6/14/6 mm, Ug=0,6 W/m2K. Dobavi in vgradi se tudi zunanja alu okenska polica R.Š.150 mm izdelana iz alu pločevine deb.1,5 mm.","kos",6,2373.86,14243.16]
["1.3.3","Okno O3 dimenzij 1560 x 1410 mm:\nIzdelava, dobava in montaža alu okna izdelana iz alu lakiranih profilov, RAL 9006. Zastekljena so z izolacijskim ornamentnim steklom Prozorna bela 6/14/6/14/6 mm, Ug=0,6 W/m2K. Dobavi in vgradi se tudi zunanja alu okenska polica R.Š.150 mm izdelana iz alu pločevine deb.1,5 mm.","kos",1,1001.16,1001.16]
["1.3.4","Okno O4 dimenzij 1620 x 750 mm:\nIzdelava, dobava in montaža alu okna izdelana iz alu lakiranih profilov , RAL 9006. Zastekljena so z izolacijskim ornamentnim steklom Rosa bela 6/14/6/14/6 mm, Ug=0,6 W/m2K. Dobavi in vgradi se tudi zunanja alu okenska polica R.Š.150 mm izdelana iz alu pločevine deb.1,5 mm.","kos",9,2941.19,{"$f":"ROUND(D62*E62,2)","v":26470.71}]
["1.3.5","Rolo vrata V1 dimenzij 1700 x 5500 mm: \nIzdelava, dobava in montaža navojnih vrat, ki so sestavljena iz izoliranih dvostenskih aluminijastih profilov, lakiranih na RAL 9006. Konzole so višinsko nastavljive, pocinkane, s prisilno vodeno navojno konzolo, pocinkana so tudi stranska vodila. Vrata so opremljena z nasadnim ali\nverižnim pogonom, 400 V trifazna napetost, IP 54 ali IP 65, z ročico za uporabo v sili in vgrajeno lovilno napravo. Krmiljenje motorja s tipkami ODPRI - USTAVI - ZAPRI. Montaža za odprtino na beton, opeko ali jeklo. Hitrost odpiranja cca. 0,28 m/sec.","kos",1,5964.32,5964.32]
["1.3.6","Vrata V2 dimenzij 1300 x 2200 mm:\nIzdelava, dobava in montaža notranjih, kovinskih, dvokrilnih, nesimetričnih vrat, požarno odporna EI 60-C3. Kovinski podboji in profili lakirani na RAL 9006. Zastekljena so s požarno odpornim  ornamentnim steklom Rosa bela 4ESG/14/6ESG. Stransko krilo opremljeno z integralnim zapahom. Dobavi in vgradi se tudi samozapiralo, talni zaustavljalec, cilindrična ključavnica v sistemu generalnega ključa, električna ključavnica 12 V.","kos",1,5970.18,{"$f":"ROUND(D64*E64,2)","v":5970.18}]
["1.3.7","Vrata V3 dimenzij 1000 x 2200 mm:\nIzdelava, dobava in montaža notranjih enokrilnih, kovinskih vrat, požarno odporna EI 30-C3. Kovinski podboji in krilo lakirani na RAL 9006. Krilo obojestransko obloženo s pocinkano pločevino d=1,5 mm, polnilo iz mineralne volne. Dobavi in vgradi se tudi samozapiralo, antipanik ključavnica po DIN EN 179, talni zaustavljalec, cilindrična ključavnica v sistemu generalnega ključa, električna ključavnica 12 V.","kos",1,2532.9299999999998,2532.9299999999998]
["1.3.8","Vrata V4 dimenzij 1000 x 2200 mm:\nIzdelava, dobava in montaža notranjih enokrilnih vrat, požarno odporna EI 30-C3. Kovinski podboji in krilo lakirani na RAL 9006. Krilo obojestransko obloženo s pocinkano pločevino d=1,5 mm, polnilo iz mineralne volne. Dobavi in vgradi se tudi samozapiralo, talni zaustavljalec, cilindrična ključavnica v sistemu generalnega ključa, električna ključavnica 12 V.","kos",1,3038.71,{"$f":"ROUND(D66*E66,2)","v":3038.71}]
["1.3.9","Vrata V5 dimenzij 800 x 2000 mm:\nIzdelava, dobava in montaža notranjih, kovinskih, enokrilnih vrat, požarno odporna EI 30-C3. Kovinski podboji in krilo lakirani na RAL 9006. Krilo obojestransko obloženo s pocinkano pločevino d=1,5 mm, polnilo iz mineralne volne. Dobavi in vgradi se tudi samozapiralo, talni zaustavljalec, cilindrična ključavnica v sistemu generalnega ključa, električna ključavnica 12 V.","kos",1,2102.44,2102.44]
["1.3.10","Vrata V6 dimenzij 700 x 2000 mm:\nIzdelava, dobava in montaža notranjih, kovinskih, enokrilnih vrat. Kovinski podboji in krilo lakirani na RAL 9006. Krilo obojestransko obloženo s pocinkano pločevino d=1,5 mm, polnilo iz mineralne volne.","kos",1,1158.75,1158.75]
["1.3.11","Vrata V7 dimenzij 600 x 2000 mm:\nIzdelava, dobava in montaža notranjih, kovinskih, enokrilnih vrat. Kovinski podboji in krilo lakirani na RAL 9006. Krilo obojestransko obloženo s pocinkano pločevino d=1,5 mm, polnilo iz mineralne volne.","kos",1,1140.21,1140.21]
["1.3.12","Vrata V8 dimenzij 900 x 2000 mm:\nIzdelava, dobava in montaža notranjih, kovinskih, enokrilnih vrat, požarno odporna EI 60-C3. Kovinski podboji in krilo lakirani na RAL 9006. Krilo obojestransko obloženo s pocinkano pločevino d=1,5 mm, polnilo iz mineralne volne. Dobavi in vgradi se tudi samozapiralo, talni zaustavljalec, cilindrična ključavnica v sistemu generalnega ključa, električna ključavnica 12 V.","kos",1,2388.3200000000002,2388.3200000000002]
["1.3.13","Vrata V9 dimenzij 850 x 2000 mm:\nIzdelava, dobava in montaža notranjih, kovinskih, enokrilnih vrat, požarno odporna EI 60-C3. Kovinski podboji in krilo lakirani na RAL 9006. Krilo obojestransko obloženo s pocinkano pločevino d=1,5 mm, polnilo iz mineralne volne. Dobavi in vgradi se tudi samozapiralo, talni zaustavljalec, cilindrična ključavnica v sistemu generalnega ključa, električna ključavnica 12 V.","kos",1,2465.8200000000002,2465.8200000000002]
["1.3.14","Vrata V10 dimenzij 850 x 2000 mm:\nIzdelava, dobava in montaža notranjih, kovinskih, enokrilnih vrat, požarno odporna EI 30-C3. Kovinski podboji in krilo lakirani na RAL 9006. Krilo obojestransko obloženo s pocinkano pločevino d=1,5 mm, polnilo iz mineralne volne. Dobavi in vgradi se tudi samozapiralo, talni zaustavljalec, cilindrična ključavnica v sistemu generalnega ključa, električna ključavnica 12 V.","kos",1,2111.71,2111.71]
["1.3.15","Vrata V11 dimenzij 850 x 2000 mm:\nIzdelava, dobava in montaža notranjih, kovinskih, enokrilnih vrat, požarno odporna EI 60-C3. Kovinski podboji in krilo lakirani na RAL 9006. Krilo obojestransko obloženo s pocinkano pločevino d=1,5 mm, polnilo iz mineralne volne. Dobavi in vgradi se tudi samozapiralo, antipanik ključavnica po DIN EN 179, talni zaustavljalec, cilindrična ključavnica v sistemu generalnega ključa, električna ključavnica 12 V.","kos",1,2606.35,{"$f":"ROUND(D73*E73,2)","v":2606.35}]
["1.3.16","Vrata V12 dimenzij 850 x 2000 mm:\nIzdelava, dobava in montaža, kovinskih, notranjih enokrilnih vrat. Kovinski podboji in krilo lakirani na RAL 9006. Krilo obojestransko obloženo s pocinkano pločevino d=1,5 mm, polnilo iz mineralne volne.","kos",1,1091.26,1091.26]
["1.3.17","Vrata V13 dimenzij 1400 x 2550 mm:\nIzdelava, dobava in montaža notranjih, kovinskih, dvokrilnih, nesimetričnih vrat, požarno odporna EI 30-C3. Kovinski odboji in krilo lakirani na RAL 9006. Krilo obojestransko obloženo s pocinkano pločevino d=1,5 mm, polnilo iz mineralne volne. Dobavi in vgradi se tudi samozapiralo, antipanik ključavnica po DIN EN 179, talni zaustavljalec, cilindrična ključavnica v sistemu generalnega ključa, električna ključavnica 12 V.","kos",1,5317.06,{"$f":"ROUND(D75*E75,2)","v":5317.06}]
["1.3.18","Vrata V14 dimenzij 1600 x 2530 mm:\nIzdelava, dobava in montaža zunanjih, kovinskih, dvokrilnih, nesimetričnih vrat. Kovinski podboji in krilo lakirani na RAL 9006. Krilo obojestransko obloženo s pocinkano pločevino d=1,5 mm, polnilo iz mineralne volne. Dobavi in vgradi se tudi samozapiralo, antipanik ključavnica po DIN EN 179, talni zaustavljalec, cilindrična ključavnica v sistemu generalnega ključa, električna ključavnica 12 V.","kos",1,4384.71,{"$f":"ROUND(D76*E76,2)","v":4384.71}]
["1.3.19","Vrata V15 dimenzij 2370 x 2260 mm:\nIzdelava, dobava in montaža zunanjih, kovinskih, dvokrilnih, simetričnih vrat. Kovinski podboji in krilo lakirani na RAL 9006. Krilo obojestransko obloženo s pocinkano pločevino d=1,5 mm, polnilo iz mineralne volne. Dobavi in vgradi se tudi samozapiralo, stransko krilo opremljeno z integralnim zapahom, talni zaustavljalec, cilindrična ključavnica v sistemu generalnega ključa, električna ključavnica 12 V.","kos",1,3884.13,{"$f":"ROUND(D77*E77,2)","v":3884.13}]
["1.3.20","Vrata V16 dimenzij 1200 x 2100 mm:\nIzdelava, dobava in montaža zunanjih, ALU, enokrilnih, vhodnih vrat. ALU podboji in ALU krilo lakirani na RAL 9006. Krilo z visokoizolativnim polnilom, debeline min 35 mm. Steklo troslojno lepljeno varnostno toplotno-izolativno, z mlečno folijo, izolacijsko 4ESG/14/4ESG/2x4,4VSG, zunanje 4 mm kaljeno,  sredinsko 4 mm, kaljeno, notranje 2x4 mm lepljeno na dvojno folijo. Dobavi in vgradi se tudi samozapiralo, antipanik ključavnica po DIN EN 179, talni zaustavljalec, cilindrična ključavnica v sistemu generalnega ključa, električna ključavnica 12 V.","kos",1,4041.72,{"$f":"ROUND(D78*E78,2)","v":4041.72}]
["1.3.21","Zamenjava ključavnice na obstoječih vratih z antipanik ključavnico po DIN EN 179, obračanje vrat, da se spremeni odpiranje vrat iz odpiranja v prostor v odpiranje iz prostora.","kpl",1,509.85,509.85]
["1.3.22","Prehod na podstrešje dimenzij 1150 x 950 mm:\nIzdelava, dobava in montaža prehoda na podstrešje, požarno odporna EI 60-C3. Okvir in krilo lakirani na RAL 9006. Krilo obojestransko obloženo s pocinkano pločevino d=1,5 mm, polnilo iz mineralne volne. Dobavi in vgradi se tudi zapiralo.\n","kos",1,2185.87,2185.87]
[]
[null,{"$f":"\"SKUPAJ \"&B57 &\":\"","v":"SKUPAJ STAVBNO POHIŠTVO:"},null,null,null,{"$f":"SUM(F57:F81)","v":105792.32000000004}]
[]
["1.4","SLIKOPLESKARSKA DELA"]
["1.4.1","Odprašitev zidov, kitanje manjših poškodb, emulzija, beljenje v dveh nanosih z disperzijsko barvo, višina zidu 6 m.","m2",450,12.05,5422.5]
["1.4.2","Odprašitev stropov, kitanje manjših poškodb, emulzija, beljenje v dveh nanosih z disperzijsko barvo, višina stropa 6 m.","m2",260,12.05,3133]
["1.4.3","Odprašitev zidov, čiščenje zadimljenih površin, kitanje poškodovanega ometa zaradi požara in vlage, emulzija, beljenje v dveh nanosih z disperzijsko barvo, višina zidu 3 m.","m2",400,25.03,{"$f":"ROUND(D87*E87,2)","v":10012}]
["1.4.4","Odprašitev zidov, čiščenje zadimljenih površin, kitanje poškodovanega ometa zaradi požara in vlage, emulzija, beljenje v dveh nanosih z disperzijsko barvo, višina stropa 3 m.","m2",230,25.03,5756.9]
[]
[null,null,null,null,null,{"$f":"SUM(F84:F89)","v":24324.400000000001}]
[]
["1.5","KLJUČAVNIČARSKA DELA"]
["1.5.1","Izdelava nosilne jeklene konstrukcije višine 1 m za namestitev celic novega SN stikališča. Konstrukcija je izdelana iz UNP 100 profilov in kvadratnih cevi. Na enem delu z dostopnimi stopnicami in na drugem s klančino za voziček. Konstrukcija se medsebojno vijači po segmentih in sidra v tla s sidrnimi vijaki. Vroče cinkano. Na zunanjem delu se izdela železna ograja, spodnji del se zapre s pločevino z možnostjo demontaže, pločevina prašno barvana na RAL 7035 .","kg",3200,7.97,{"$f":"ROUND(D93*E93,2)","v":25504}]
["1.5.2","Železna ograja, prašno barvana na RAL 7035 , višine 1100 mm, izdelana iz okroglih profilov:\n - Okrogla cev 48,3x3,3 naslonjalo\n - Okrogla cev 26,9x2,6 2x prečki\n - Okrogla cev 48,3x3,6 mm stebrčki","m",14,208.58,2920.12]
[]
[null,{"$f":"\"SKUPAJ \"&B92 &\":\"","v":"SKUPAJ KLJUČAVNIČARSKA DELA:"},null,null,null,{"$f":"SUM(F92:F95)","v":28424.12}]
[]
["1.6","DVOJNI POD"]
[]
["1.6.1","Dobava in montaža dvojnega poda okoli novega SN stikališča, kot npr. CBI PT30V: \n- Skupna višina poda 1000 mm,\n- Kovinska stojka iz galvaniziranega jekla, nastavljiva 800-1050 mm, s prevodnim tesnilom,\n- Povezovalni U profili (stringer) s tesnilom,\n- Pohodni paneli dim. 600x600 mm, debeline 30-42 mm,\n- Jedro panelov iz lesovinske plošče gostote min 700 kg/m3,\n- Paneli s spodnje strani polno enkapsulirani v galvanizirano jekleno pločevino deb. min 0,5 mm,\n- Bočne stranice panelov vdelane v galvanizirano jekleno pločevino in oblečene z ABS nalimki,\n- Zgornja stran panela oblečena s tovarniško nalepljeno PVC oblogo, kot npr. Mipolan Elegance\n  EL5, deb. 2mm,\n- Obremenitve:\n    - Ultimate load 12 kN,\n    - Point load resistance 8,7 kN,\n- Notranja električna upornost po EN 1081 104 <= Rt <=106 Ohm. \n- Gradbeni material glede na EN 13501 Bfl-s1\n- Požarna odpornost REI30\n\nMontaža dvojnega poda v ploščah na predhodno niveliran betonski estrih, oz. zaglajeno AB ploščo, vključno z lepljenjem stojk na podlago s namenskim CBI PU lepilom, montažo povezovalnih U profilov, montaža vseh tesnil in polaganje plošč dvignjenega poda, \n","m2",85,176.87,{"$f":"ROUND(D100*E100,2)","v":15033.95}]
["1.6.2","L profili za podpiranje dvojnega poda na stenah:\n- 40x40x3 mm, \n- vroče cinkano,\n- z izdelanimi luknjami za niveliranje,","m",32,76.010000000000005,2432.3200000000002]
["1.6.3","Zaščite za okna iz prašno barvane pločevine, debelina pločevine 3 mm, dolžina 1800 mm, višina 200 mm, RAL 7035","kos",6,417.15,{"$f":"ROUND(D102*E102,2)","v":2502.9}]
[]
[null,{"$f":"\"SKUPAJ \"&B98 &\":\"","v":"SKUPAJ DVOJNI POD:"},null,null,null,{"$f":"SUM(F98:F103)","v":19969.170000000002}]
[]
["1.7","TALNE OBLOGE"]
["1.7.1","Dobava in vgradnja samorazlivnega epoksi tlaka debeline 3 mm, s posipnimi lističi","m2",170,36.15,{"$f":"ROUND(D107*E107,2)","v":6145.5}]
[]
[null,{"$f":"\"SKUPAJ \"&B106 &\":\"","v":"SKUPAJ TALNE OBLOGE:"},null,null,null,{"$f":"SUM(F106:F108)","v":6145.5}]
[]
["1.8","OSTALO"]
[]
["1.8.1","Varovalna oprema"]
["1.8.1.1","Sidrišče SKYLOTEC D-BOLT AP-063-GPS, (vložek, sidrna masa, vijak in sidrišče)","kos",4,268.83,{"$f":"ROUND(D114*E114,2)","v":1075.32}]
["1.8.1.2","Konzola za vpetje varovalne palice za preprečitev prehoda odprtih dvižnih vrat, zatezna sidra","kos",4,231.75,{"$f":"ROUND(D115*E115,2)","v":927}]
["1.8.1.3","Varovalna palica, belo-rdeča","kos",2,166.86,{"$f":"ROUND(D116*E116,2)","v":333.72}]
[]
["1.8.2","Čiščenje"]
["1.8.2.1","Končno čiščenje stikališča, kabelskega prostora in stopnišč, vključno s stavbnim pohištvom","kpl",1,927,{"$f":"ROUND(D119*E119,2)","v":927}]
[]
[]
[null,{"$f":"\"SKUPAJ \"&B111 &\":\"","v":"SKUPAJ OSTALO:"},null,null,null,{"$f":"SUM(F111:F121)","v":3263.04}]
[]
[null,"SKUPAJ:",null,null,null,{"$f":"SUMIFS(F17:F123,D17:D123,\">0\",E17:E123,\">0\")","v":249175.65000000002}]

{"sheet":"2. SN stikališče","index":4,"n_rows":144,"n_cols":6,"rows_kept":144,"cut":false,"hidden":false,"merged":[[143,1,143,4],[67,1,67,4],[2,1,2,5],[120,1,120,4],[128,1,128,4],[21,1,21,4],[104,1,104,4],[44,1,44,4],[141,1,141,4]]}
[]
[]
["2.","SN STIKALIŠČE"]
[]
[]
[]
[]
[]
[]
[]
["Poz.","Opis opreme ali storitev","Enota","Količina","Cena na enoto (€)","Vrednost (€)"]
[]
[null,"OPOMBE:"]
[null,"- Kolikor so v določenih postavkah popisa navedeni proizvajalci in tipi posamezne opreme, s čemer so natančno opredeljene njene tehnične lastnosti, so navedeni le kot primer za določitev tehničnih parametrov opreme. Navedene dimenzije so le orientacijske. Ponudnik lahko ponudi nadomestno opremo drugega proizvajalca in tipa pri čemer morajo biti tehnične lastnosti ponujene opreme enakovredne ali boljše od tistih v popisu. Vse morebitne posledice zaradi spremembe tipov opreme, vključno z morebitnimi spremembami oz. dopolnitvami PZI dokumentacije, stroškovno in časovno bremenijo ponudnika.\n- Za vso opremo je potrebno predvideti dobavo, transport, montažo, izvedbo vseh povezav in funkcionalni preiskus."]
[]
["2.1","DEMONTAŽA OBSTOJEČEGA STIKALIŠČA"]
[]
["2.1.1","Demontaža stikalne in merilne opreme in odvoz na skladiščenej pri naročniku","kpl",1,3605,{"$f":"ROUND(D18*E18,2)","v":3605}]
["2.1.2","Demontaža Cu zbiralk, odvoz na skledišče pri naročniku","kg",3600,0.52,{"$f":"ROUND(D19*E19,2)","v":1872}]
["2.1.3","Demontaža SN kabla PP41 3x50 mm2 in odvoz na skladiščenje pri naročniku","m",340,4.84,{"$f":"ROUND(D20*E20,2)","v":1645.6}]
[]
[null,{"$f":"\"SKUPAJ \"&B16 &\":\"","v":"SKUPAJ DEMONTAŽA OBSTOJEČEGA STIKALIŠČA:"},null,null,null,{"$f":"SUM(F16:F21)","v":7122.6}]
[]
["2.2","6,3 kV STIKALIŠČE - 1-sistemske zbiralke"]
[null,"6,3 kV stikališče, izdelano za 12 kV izolacijski nivo:\n- Nazivna stopnja izolacije 12 LI75AC28\n- nazivni tok zbiralk 3150 A\n- Termični tok KS Ith = 50 kA, 3 s za glavne tokokroge\n- Termični tok KS Ith = 50 kA, 1 s za ozemljitvene tokokroge\n- Stopnja pregrajenosti LSC 2B\n- Klasifikacija notranjega obloka IAC A FLR\n- Razred pregrajenosti PM\n- Stopnja mehanske zaščite IP4x\n- Signalizacija in krmiljenje 220 V DC"]
[]
["2.2.1","Stikališče"]
["2.2.1.1","Transformatorska celica, kovinsko oklopljena, opremljena z:\n- generatorskim vakuumskim odklopnikom 3150 A na motorni pogon (po IEC/IEEE 62271-37-013),\n- odklopnik montiran na izvlačljivem vozičku, s tipkami za VKLOP in IZKLOP\n- NIT 6/√3 / 0,1/√3  / 0,1/√3,\n- TIT 2000/1/1/1/1 A, \n- objemni TIT 50/1 A, \n- ozemljilnik,\n- prenapetostni odvodniki, Uc=7 kV,\n- NN krmilno omarico","kos",2,108241.16,{"$f":"ROUND(D28*E28,2)","v":216482.32}]
["2.2.1.2","Generatorska celica, kovinsko oklopljena, opremljena z:\n- generatorskim vakuumskim odklopnikom 2000 A na motorni pogon (po IEC/IEEE 62271-37-013),\n- odklopnik montiran na izvlačljivem vozičku, s tipkami za VKLOP in IZKLOP\n- TIT 1500/1/1/1 A, \n- objemni TIT 50/1 A, \n- ozemljilnik,\n- prenapetostni odvodniki, Uc=7 kV,\n- NN krmilno omarico","kos",2,81830.929999999993,{"$f":"ROUND(D29*E29,2)","v":163661.85999999999}]
["2.2.1.3","Spojna celica, kovinsko oklopljena, opremljena z:\n- vakuumskim odklopnikom 3150 A na motorni,\n- odklopnik montiran na izvlačljivem vozičku, s tipkami za VKLOP in IZKLOP\n- TIT 3000/1/1 A,  \n- Cu zbiralkami za 3150 A za povezavo do spojne celice brez odklopnika\n- NN krmilno omarico","kos",1,50322.2,50322.2]
["2.2.1.4","Spojna celica, kovinsko oklopljena, opremljena z:\n- NN krmilno omarico","kos",1,14668.38,{"$f":"ROUND(D31*E31,2)","v":14668.38}]
["2.2.1.5","Celica za TR LR, kovinsko oklopljena, opremljena z:\n- vakuumskim odklopnikom 1250 A na motorni pogon,\n- odklopnik montiran na izvlačljivem vozičku, s tipkami za VKLOP in IZKLOP\n- TIT 100/1/1/1 A, \n- objemni TIT 50/1 A, \n- ozemljilnik,\n- prenapetostni odvodniki, Uc=7 kV,\n- NN krmilno omarico","kos",2,39615.35,79230.7]
["2.2.1.6","Vodna celica, kovinsko oklopljena, opremljena z:\n- vakuumskim odklopnikom 1250 A na motorni pogon,\n- odklopnik montiran na izvlačljivem vozičku, s tipkami za VKLOP in IZKLOP\n- TIT 250/1/1/1 A, \n- objemni TIT 50/1 A, \n- ozemljilnik,\n- prenapetostni odvodniki, Uc=7 kV,\n- NN krmilno omarico","kos",6,39962.04,239772.24]
["2.2.1.7","Vodna celica, kovinsko oklopljena, opremljena z:\n- vakuumskim odklopnikom 1250 A na motorni pogon,\n- odklopnik montiran na izvlačljivem vozičku, s tipkami za VKLOP in IZKLOP\n- TIT 500/1/1/1 A, \n- ozemljilnik,\n- prenapetostni odvodniki, Uc=7 kV,\n- NN krmilno omarico","kos",2,39472.589999999997,78945.179999999993]
["2.2.1.8","Merilna celica, kovinsko oklopljena, opremljena z:\n- NIT 6/√3 / 0,1/√3 / 0,1/√3  / 0,1/3,\n- ozemljilnik,\n- NN krmilno omarico","kos",2,21362.720000000001,42725.440000000002]
["2.2.1.9","Voziček za odklopnik","kos",2,254.93,509.86]
["2.2.1.10","Specialna orodja za montažo in vzdrževanje (priložiti seznam)","kpl",1,713.79,{"$f":"ROUND(D37*E37,2)","v":713.79}]
["2.2.1.11","Dodatna oprema:\n- Napisne table na posameznih celicah\n- Enopolna shema\n- Shematske risbe s presekom vseh tipičnih celic\n- Napisna plošča z glavnimi tehničnimi karakteristikami stikališča","kpl",1,927,{"$f":"ROUND(D38*E38,2)","v":927}]
["2.2.1.12","Preizkusi (FAT, SAT)","kpl",1,2719.2,2719.2]
["2.2.1.13","Montaža 6,3 kV stikališča","kpl",1,6756.8,{"$f":"ROUND(D40*E40,2)","v":6756.8}]
["2.2.1.14","Nadzor nad montažo","kpl",1,5200.47,5200.47]
["2.2.1.15","Spuščanje v pogon","kpl",1,988.8,988.8]
["2.2.1.16","VN test stikališča po končani montaži","kpl",1,2781,2781]
[]
[null,{"$f":"\"SKUPAJ \"&B27 &\":\"","v":"SKUPAJ Stikališče:"},null,null,null,{"$f":"SUM(F27:F44)","v":906405.23999999987}]
[]
["2.2.2","Rezervni deli"]
["2.2.2.1","Generatorski vakuumski odklopnikom 2000 A na motorni pogon (po IEC/IEEE 62271-37-013),","kos",1,69555.78,{"$f":"ROUND(D48*E48,2)","v":69555.78}]
["2.2.2.2","Generatorski vakuumski odklopnikom 3150 A na motorni pogon (po IEC/IEEE 62271-37-013),","kos",1,91803.59,{"$f":"ROUND(D49*E49,2)","v":91803.59}]
["2.2.2.3","Motorni pogon za odklopnik 3150 A","kos",1,635.27,{"$f":"ROUND(D50*E50,2)","v":635.27}]
["2.2.2.4","Motorni pogon za odklopnik 2000 A","kos",1,635.27,{"$f":"ROUND(D51*E51,2)","v":635.27}]
["2.2.2.5","Motorni pogon za odklopnik 1250 A","kos",1,635.27,635.27]
["2.2.2.6","Izklopna tuljava za odklopnik 3150 A","kos",2,269.2,538.4]
["2.2.2.7","Vklopna tuljava za odklopnik 3150 A","kos",2,269.2,{"$f":"ROUND(D54*E54,2)","v":538.4}]
["2.2.2.8","Izklopna tuljava za odklopnik 2000 A","kos",2,269.2,538.4]
["2.2.2.9","Vklopna tuljava za odklopnik 2000 A","kos",2,269.2,538.4]
["2.2.2.10","Izklopna tuljava za odklopnik 1250 A","kos",2,269.2,538.4]
["2.2.2.11","Vklopna tuljava za odklopnik 1250 A","kos",2,269.2,538.4]
["2.2.2.12","Pomožni kontakti za odklopnik 3150 A","kos",2,354.86,709.72]
["2.2.2.13","Pomožni kontakti za odklopnik 2000 A","kos",2,354.86,709.72]
["2.2.2.14","Pomožni kontakti za odklopnik 1250 A","kos",2,354.86,709.72]
["2.2.2.15","Pomožni kontakti za voziček","kos",2,598.55999999999995,1197.1199999999999]
["2.2.2.16","Pomožni kontakti za ozemljilni ločilnik","kos",2,354.86,{"$f":"ROUND(D63*E63,2)","v":709.72}]
["2.2.2.17","Napetostni instrumentni transformator za montažo v merilno celico","kos",1,1406.17,{"$f":"ROUND(D64*E64,2)","v":1406.17}]
["2.2.2.18","SN varovalka za napetostni instrumentni transformator","kos",1,305.91000000000003,305.91000000000003]
["2.2.2.19","Odvodnik prenapetosti za montažo v SN celici","kos",1,720.93,720.93]
[]
[null,{"$f":"\"SKUPAJ \"&B47 &\":\"","v":"SKUPAJ Rezervni deli:"},null,null,null,{"$f":"SUM(F48:F67)","v":172964.58999999994}]
[]
["2.3","6,3 kV KABLI"]
[]
[null,"OPOMBE:"]
[null,"Količine kablov bodo obračunane po dejansko položeni količini kablov od priključka do priključka. Morebitne rezerve in dodatki zaradi polaganja morajo biti vkalkulirani v enotno ceno dobave in polaganja kabla."]
[]
["2.3.1","Kabli, kabelske spojke in kabelski končniki"]
["2.3.1.1","Kabel N2XSY 1x300mm","m",600,40.17,{"$f":"ROUND(D76*E76,2)","v":24102}]
["2.3.1.2","Kabel N2XSY 1x240mm","m",280,33.99,{"$f":"ROUND(D77*E77,2)","v":9517.2000000000007}]
["2.3.1.3","Kabel N2XSY 1x150mm","m",1200,23.69,{"$f":"ROUND(D78*E78,2)","v":28428}]
["2.3.1.4","Kabelska spojka za N2XSY 1x300mm","kos",18,144.19999999999999,{"$f":"ROUND(D79*E79,2)","v":2595.6}]
["2.3.1.5","Kabelska spojka za N2XSY 1x240mm","kos",18,92.7,1668.6]
["2.3.1.6","Kabelski končniki za N2XSY 1x300mm za montažo na prostem","kpl",1,288.39999999999998,288.39999999999998]
["2.3.1.7","Kabelski končniki za N2XSY 1x300mm za montažo v celici","kpl",8,231.75,{"$f":"ROUND(D82*E82,2)","v":1854}]
["2.3.1.8","Kabelski končniki za N2XSY 1x240mm za montažo v celici","kpl",6,123.6,741.6]
["2.3.1.9","Kabelski končniki za N2XSY 1x150mm za montažo v celici","kpl",2,108.15,{"$f":"ROUND(D84*E84,2)","v":216.3}]
["2.3.1.10","Kabelski končniki za N2XSY 1x150mm za montažo na prostem","kpl",2,185.4,{"$f":"ROUND(D85*E85,2)","v":370.8}]
[]
["2.3.2","Polaganje in zaključevanje kablov"]
["2.3.2.1","Polaganje in pritrjevanje kabla N2XSY 1x300mm, vključno z veznim in pritrdilnim materialom","m",{"$f":"D76","v":600},6.18,{"$f":"ROUND(D88*E88,2)","v":3708}]
["2.3.2.2","Polaganje in pritrjevanje kabla N2XSY 1x240mm, vključno z veznim in pritrdilnim materialom","m",280,11.33,3172.4]
["2.3.2.3","Polaganje in pritrjevanje kabla N2XSY 1x150mm, vključno z veznim in pritrdilnim materialom","m",1200,5.15,6180]
["2.3.2.4","Izdelava kabelske spojke za N2XSY 1x300mm","kos",18,329.6,5932.8]
["2.3.2.5","Izdelava kabelske spojke za N2XSY 1x240mm","kos",18,329.6,5932.8]
["2.3.2.6","Izdelava kabelskega končnika za N2XSY 1x300mm za montažo na prostem in pritrditev na prostozračne zbiralke","kpl",1,412,412]
["2.3.2.7","Izdelava kabelskega končnika za N2XSY 1x300mm za montažo v celici in pritrditev na Cu priključke v celici","kpl",8,412,3296]
["2.3.2.8","Izdelava kabelskega končnika za N2XSY 1x240mm za montažo v celici in pritrditev na Cu priključke v celici","kpl",6,412,2472]
["2.3.2.9","Izdelava kabelskega končnika za N2XSY 1x150mm za montažo v celici in pritrditev na Cu priključke v celici","kpl",2,412,824]
["2.3.2.10","Izdelava kabelskega končnika za N2XSY 1x150mm za montažo na prostem in pritrditev na skoznjike na TR","kpl",2,412,824]
["2.3.2.11","Kabelske objemke za kabel 3x1x150 za montažo na kabelske lestve, jeklene profile ali betonsko steno, dobava in montaža","kos",50,25.75,{"$f":"ROUND(D98*E98,2)","v":1287.5}]
["2.3.2.12","Kabelske objemke za kabel 3x1x300 za montažo na kabelske lestve, jeklene profile ali betonsko steno, dobava in montaža","kos",25,28.84,721]
["2.3.2.13","Izvedba visokonapetostnih napetostnih preizkusov podaljšanih in novih kablov","kos",6,3278.9,19673.400000000001]
["2.3.2.14","Označevanje vseh položenih kablov (v celicah, na napravah, na vseh prehodih iz prostora v prostor, …) vključno z materialom za označevanje","kpl",1,865.2,865.2]
["2.3.2.15","Dobava in montaža elementov sistema za protipožarno tesnjenje kabelskih odprtin, izdaja certifikata požarne tesnitve","m2",1,927,{"$f":"ROUND(D102*E102,2)","v":927}]
["2.3.2.16","Drobni montažni material","kpl",1,1545,{"$f":"ROUND(D103*E103,2)","v":1545}]
[]
[null,{"$f":"\"SKUPAJ \"&B70 &\":\"","v":"SKUPAJ 6,3 kV KABLI:"},null,null,null,{"$f":"SUM(F70:F104)","v":127555.59999999999}]
[]
["2.4","KABELSKE POLICE"]
[]
[null,"OPOMBE:"]
[]
[null,"Dobavljen in montiran mora biti sistem kabelskih polic v celoti z vsemi elemeni za montažo na steno, strop ali betonska tla vključno s pritrdilnim materialom. Police morajo biti med seboj tovarniško galvansko povezane brez dodatnih žičnih povezav."]
[null,"Kabelske police morajo biti ločene za energetske in krmilno-signalne kable"]
["2.4.1","Kabelske lestve iz pocinkane pločevine LK 60/700 širine 700 mm, nosilnost 1000 N/m, z nosilnimi elementi in pritrdilnim materialom","m",110,90.64,{"$f":"ROUND(D113*E113,2)","v":9970.4}]
["2.4.2","Kabelske lestve iz pocinkane pločevine LK 60/400 širine 400 mm, nosilnost 500 N/m, z nosilnimi elementi in pritrdilnim materialom","m",120,45.32,{"$f":"ROUND(D114*E114,2)","v":5438.4}]
["2.4.3","Kabelske police in pokrov iz pocinkane pločevine PK 100/200 širine 200 mm, nosilnost 500 N/m, z nosilnimi elementi in pritrdilnim materialom","m",18,42.23,760.14]
["2.4.4","Kotni spoj, \"T\" spoj, ravni spoj, za kabelske lestve 60/700 širine 700 mm, nosilnost 1000 N/m","kos",22,148.32,3263.04]
["2.4.5","Kotni spoj, \"T\" spoj, ravni spoj, za kabelske lestve 60/400 širine 400 mm, nosilnost 500 N/m","kos",8,37.08,{"$f":"ROUND(D117*E117,2)","v":296.64}]
["2.4.6","Pocinkani C profili 41x40 mm za podpore kablov","m",60,23.69,1421.4]
["2.4.7","Drobni montažni, vijačni, ozemljitveni in označevalni material","kpl",1,329.6,329.6]
[]
[null,{"$f":"\"SKUPAJ \"&B107 &\":\"","v":"SKUPAJ KABELSKE POLICE:"},null,null,null,{"$f":"SUM(F107:F120)","v":21479.62}]
[]
["2.5","OZEMLJITVE"]
["2.5.1","Dobava in montaža Cu profilov 40x5 mm","m",80,41.2,{"$f":"ROUND(D124*E124,2)","v":3296}]
["2.5.2","Dobava in montaža vrvi P/F 95 mm2","m",120,19.57,2348.4]
["2.5.3","Dobava in montaža vrvi P/F 16 mm2","m",75,8.24,{"$f":"ROUND(D126*E126,2)","v":618}]
["2.5.4","Vijačni in pritrdilni material iz nerjavnega materiala in drobni montažni material ","kpl",1,2575,2575]
[]
[null,{"$f":"\"SKUPAJ \"&B123 &\":\"","v":"SKUPAJ OZEMLJITVE:"},null,null,null,{"$f":"SUM(F123:F128)","v":8837.4}]
[]
["2.6","PROTIPOŽARNI SISTEM IN GASILNI APARATI"]
[]
[null,"OPOMBE:"]
[]
[null,"Dobavljena oprema požarnega javljanja mora biti kompatibilna z obstoječim sistemom požarnega javljanja na objektu."]
["2.6.1","Kabel za detektor požara J-Y(ST)Y 2 x 2 x 0.8 mm rdeče barve, dobava in montaža","m",75,2.27,{"$f":"ROUND(D136*E136,2)","v":170.25}]
["2.6.2","Avtomatski javlljalnik požara s podnoižjem, dovava in montaža","kos",4,95.01,380.04]
["2.6.3","Alarmna sirena, dobava in montaža","kos",4,153.27000000000001,{"$f":"ROUND(D138*E138,2)","v":613.08000000000004}]
["2.6.4","Predelava in parametriranje obstoječe požarne centrale na objektu z vključitvijo novih elementov v sistem požarnega javljanja. ","kpl",1,618,618]
["2.6.5","Ročni gasilni aparat s prahom S9","kos",12,66.95,803.4]
[]
[null,{"$f":"\"SKUPAJ \"&B131 &\":\"","v":"SKUPAJ PROTIPOŽARNI SISTEM IN GASILNI APARATI:"},null,null,null,{"$f":"SUM(F131:F141)","v":2584.77}]
[]
[null,"SKUPAJ:",null,null,null,{"$f":"SUMIFS(F13:F143,D13:D143,\">0\",E13:E143,\">0\")","v":1246949.8199999989}]

{"sheet":"3. Sekundarni sistemi","index":5,"n_rows":263,"n_cols":6,"rows_kept":263,"cut":false,"hidden":false,"merged":[[2,1,2,5],[170,1,170,4],[241,1,241,4],[262,1,262,4],[184,1,184,4],[234,1,234,4],[251,1,251,4],[260,1,260,4]]}
[]
[]
["3.","SEKUNDARNI SISTEMI"]
[]
[]
[]
[]
[]
[]
[]
["Poz.","Opis opreme ali storitev","Enota","Količina","Cena na enoto (€)","Vrednost (€)"]
[]
[null,"OPOMBE:"]
[null,"- Kolikor so v določenih postavkah popisa navedeni proizvajalci in tipi posamezne opreme, s čemer so natančno opredeljene njene tehnične lastnosti, so navedeni le kot primer za določitev tehničnih parametrov opreme. Navedene dimenzije so le orientacijske. Ponudnik lahko ponudi nadomestno opremo drugega proizvajalca in tipa pri čemer morajo biti tehnične lastnosti ponujene opreme enakovredne ali boljše od tistih v popisu. Vse morebitne posledice zaradi spremembe tipov opreme, vključno z morebitnimi spremembami oz. dopolnitvami PZI dokumentacije, stroškovno in časovno bremenijo ponudnika.\n- Za vso opremo je potrebno predvideti dobavo, transport, montažo, izvedbo vseh povezav in funkcionalni preiskus."]
[]
["3.1","KRMILNE OMARICE"]
["3.1.1","Dobava in izdelava (krmilna omarica transformatorske celice) z opremo:","komplet",2,6322.14,{"$f":"ROUND(D17*E17,2)","v":12644.28}]
[null,"A – meter Iskra FQ 0307, 2500A / 1A,  ","kos",1]
[null,"V – meter Iskra FQ 0307, 0-250 V","kos",1]
[null,"V - metrska preklopka R.K. 4G10-66-U/19","kos",1]
[null,"Rele s podnožjem in tuljavo 220V DC in 4x NO kontakti Iskra K07CG-40-FD","kos",1]
[null,"Tropolno avtomatsko zaščitno stikalo ABB S203 Z2 + S2-H20 I=2A, 440VAC,220VDC","kos",1]
[null,"Tropolno avtomatsko zaščitno stikalo ABB S203 B6+S2-H20, I=6A, U=220VDC","kos",1]
[null,"Dvopolno avtomatsko zaščitno stikalo ABB S202 B6+S2-H20, I=6A, U=220VDC","kos",2]
[null,"Dvopolno avtomatsko zaščitno stikalo ABB S202 C6+S2-H20, I=6A, U=220VDC","kos",1]
[null,"Dvopolno avtomatsko zaščitno stikalo ABB S202 K3+S2-H20, I=3A, U=220VDC","kos",1]
[null,"Enopolno avtomatsko zaščitno stikalo ABB S201 C10 I=10A, U =240V AC","kos",1]
[null,"Terminal vodenja in zaščite (kot npr. REF615 HBFJAEAGNEA1BBA11G ali 7SJ85 P1J360063)","kos",1]
[null,"Testna vtičnica ABB RTXP-18","kos",1]
[null,"Preklopka LOKALNO/DALJINSKO","kos",1]
[null,"Slepa shema z LED svetilkami za označbo položajev stikal"]
[null,"Led svetilka Rittal, 30 W,U=220 V AC","kos",1]
[null,"Mikrostikalo za vklop svetilke Rittal","kos",1]
[null,"Enopolna vtičnica Rittal, 16A","kos",1]
[null,"Vrstne sponke Weidmuller WDU 6","kos",20]
[null,"Vrstne sponke Weidmuller WPE 6","kos",5]
[null,"Vrstne sponke Weidmuller WDU 2,5","kos",90]
[null,"Vrstne sponke Weidmuller WTL6/2, + pribor QVS 2 SAKT1+2\nSTB 35 IH/--","kos",70]
[null,"Vrstne sponke Phoenix VBSTB 4-FS","kos",135]
[null,"Ožičenje","kpl",1]
[null,"Kanal za ožičenje Strojkoplast","m",3]
[]
["3.1.2","Dobava in izdelava (krmilna omarica generatorske celice) z opremo:","komplet",2,6322.14,{"$f":"ROUND(D43*E43,2)","v":12644.28}]
[null,"A – meter Iskra FQ 0307, 1500A / 1A,  ","kos",1]
[null,"V – meter Iskra FQ 0307, 0-250 V","kos",1]
[null,"V - metrska preklopka R.K. 4G10-66-U/19","kos",1]
[null,"Rele s podnožjem in tuljavo 220V DC in 4x NO kontakti Iskra K07CG-40-FD","kos",1]
[null,"Tropolno avtomatsko zaščitno stikalo ABB S203 Z6 + S2-H20 I=6A, 440VAC,220VDC","kos",3]
[null,"Enopolno avtomatsko zaščitno stikalo ABB S201 Z6 + S2-H20 I=6A, 440VAC,220VDC","kos",1]
[null,"Dvopolno avtomatsko zaščitno stikalo ABB S202 C6+S2-H20, I=6A, U=220VDC","kos",1]
[null,"Enopolno avtomatsko zaščitno stikalo ABB S201 C10 I=10A, U =240V AC","kos",1]
[null,"Terminal vodenja in zaščite (kot npr. REF615 HBFJAEAGNEA1BBA11G ali 7SJ82 P1J101044)","kos",1]
[null,"Testna vtičnica ABB RTXP-18","kos",1]
[null,"Preklopka LOKALNO/DALJINSKO","kos",1]
[null,"Slepa shema z LED svetilkami za označbo položajev stikal"]
[null,"Led svetilka Rittal, 30 W,U=220 V AC","kos",1]
[null,"Mikrostikalo za vklop svetilke Rittal","kos",1]
[null,"Enopolna vtičnica Rittal, 16A","kos",1]
[null,"Vrstne sponke Weidmuller WDU 6","kos",20]
[null,"Vrstne sponke Weidmuller WPE 6","kos",5]
[null,"Vrstne sponke Weidmuller WDU 2,5","kos",50]
[null,"Vrstne sponke Weidmuller WTL6/2, + pribor QVS 2 SAKT1+2\nSTB 35 IH/--","kos",65]
[null,"Vrstne sponke Phoenix VBSTB 4-FS","kos",175]
[null,"Ožičenje","kpl",1]
[null,"Kanal za ožičenje Strojkoplast","m",3]
[]
["3.1.3","Dobava in izdelava (krmilna omarica celice lastne porabe) z opremo:","komplet",2,6322.14,{"$f":"ROUND(D67*E67,2)","v":12644.28}]
[null,"A – meter Iskra FQ 0307, 100A / 1A,  ","kos",1]
[null,"Dvopolno avtomatsko zaščitno stikalo ABB S202 B6+S2-H20, I=6A, U=220VDC","kos",2]
[null,"Dvopolno avtomatsko zaščitno stikalo ABB S202 C6+S2-H20, I=6A, U=220VDC","kos",1]
[null,"Dvopolno avtomatsko zaščitno stikalo ABB S202 K3+S2-H20, I=3A, U=220VDC","kos",1]
[null,"Enopolno avtomatsko zaščitno stikalo ABB S201 C10 I=10A, U =240V AC","kos",1]
[null,"Terminal vodenja in zaščite (kot npr. REF615 HBFJAEAGNEA1BBA11G ali 7SJ82 P1J101044)","kos",1]
[null,"Testna vtičnica ABB RTXP-18","kos",1]
[null,"Preklopka LOKALNO/DALJINSKO","kos",1]
[null,"Slepa shema z LED svetilkami za označbo položajev stikal"]
[null,"Led svetilka Rittal, 30 W,U=220 V AC","kos",1]
[null,"Mikrostikalo za vklop svetilke Rittal","kos",1]
[null,"Enopolna vtičnica Rittal, 16A","kos",1]
[null,"Vrstne sponke Weidmuller WDU 6","kos",20]
[null,"Vrstne sponke Weidmuller WPE 6","kos",5]
[null,"Vrstne sponke Weidmuller WDU 2,5","kos",90]
[null,"Vrstne sponke Weidmuller WTL6/2, + pribor QVS 2 SAKT1+2\nSTB 35 IH/--","kos",60]
[null,"Vrstne sponke Phoenix VBSTB 4-FS","kos",130]
[null,"Ožičenje","kpl",1]
[null,"Kanal za ožičenje Strojkoplast","m",3]
[]
["3.1.4","Dobava in izdelava (krmilna omarica vodne celice) z opremo:","komplet",6,6322.14,{"$f":"ROUND(D88*E88,2)","v":37932.839999999997}]
[null,"A – meter Iskra FQ 0307, 250A / 1A,  ","kos",1]
[null,"Tropolno avtomatsko zaščitno stikalo ABB S203 B6+S2-H20, I=6A, U=220VDC","kos",1]
[null,"Dvopolno avtomatsko zaščitno stikalo ABB S202 B6+S2-H20, I=6A, U=220VDC","kos",2]
[null,"Dvopolno avtomatsko zaščitno stikalo ABB S202 C6+S2-H20, I=6A, U=220VDC","kos",1]
[null,"Dvopolno avtomatsko zaščitno stikalo ABB S202 K3+S2-H20, I=3A, U=220VDC","kos",1]
[null,"Enopolno avtomatsko zaščitno stikalo ABB S201 C10 I=10A, U =240V AC","kos",1]
[null,"Terminal vodenja in zaščite (kot npr. REF615 HBFJAEAGNEA1BBA11G ali 7SJ82 P1J101044)","kos",1]
[null,"Testna vtičnica ABB RTXP-18","kos",1]
[null,"Preklopka LOKALNO/DALJINSKO","kos",1]
[null,"Slepa shema z LED svetilkami za označbo položajev stikal"]
[null,"Led svetilka Rittal, 30 W,U=220 V AC","kos",1]
[null,"Mikrostikalo za vklop svetilke Rittal","kos",1]
[null,"Enopolna vtičnica Rittal, 16A","kos",1]
[null,"Vrstne sponke Weidmuller WDU 6","kos",20]
[null,"Vrstne sponke Weidmuller WPE 6","kos",5]
[null,"Vrstne sponke Weidmuller WDU 2,5","kos",90]
[null,"Vrstne sponke Weidmuller WTL6/2, + pribor QVS 2 SAKT1+2\nSTB 35 IH/--","kos",60]
[null,"Vrstne sponke Phoenix VBSTB 4-FS","kos",130]
[null,"Ožičenje","kpl",1]
[null,"Kanal za ožičenje Strojkoplast","m",3]
[]
["3.1.5","Dobava in izdelava (krmilna omarica vzdolžne celice z odklopnikom) z opremo:","komplet",1,6322.14,{"$f":"ROUND(D110*E110,2)","v":6322.14}]
[null,"A – meter Iskra FQ 0307, 3000A / 1A,  ","kos",1]
[null,"Rele s podnožjem in tuljavo 220V DC in 4x NO kontakti Iskra K07CG-40-FD","kos",1]
[null,"Dvopolno avtomatsko zaščitno stikalo ABB S202 B6+S2-H20, I=6A, U=220VDC","kos",2]
[null,"Dvopolno avtomatsko zaščitno stikalo ABB S202 K3+S2-H20, I=3A, U=220VDC","kos",1]
[null,"Dvopolno avtomatsko zaščitno stikalo ABB S202 C6+S2-H20, I=6A, U=220VDC","kos",1]
[null,"Enopolno avtomatsko zaščitno stikalo ABB S201 C10 I=10A, U =240V AC","kos",1]
[null,"Terminal vodenja in zaščite (kot npr. REF615 HBFJAEAGNEA1BBA11G ali 7SJ85 P1J360063)","kos",1]
[null,"Testna vtičnica ABB RTXP-18","kos",1]
[null,"Preklopka LOKALNO/DALJINSKO","kos",1]
[null,"Slepa shema z LED svetilkami za označbo položajev stikal"]
[null,"Led svetilka Rittal, 30 W,U=220 V AC","kos",1]
[null,"Mikrostikalo za vklop svetilke Rittal","kos",1]
[null,"Enopolna vtičnica Rittal, 16A","kos",1]
[null,"Vrstne sponke Weidmuller WDU 6","kos",20]
[null,"Vrstne sponke Weidmuller WPE 6","kos",5]
[null,"Vrstne sponke Weidmuller WDU 2,5","kos",95]
[null,"Vrstne sponke Weidmuller WTL6/1, + pribor QVS 2 SAKT1+2\nSTB 35 IH/--","kos",35]
[null,"Vrstne sponke Phoenix VBSTB 4-FS","kos",155]
[null,"Ožičenje","kpl",1]
[null,"Kanal za ožičenje Strojkoplast","m",3]
[]
["3.1.6","Dobava in izdelava (krmilna omarica vzdolžne celice brez odklopnika) z opremo:","komplet",1,6322.14,{"$f":"ROUND(D132*E132,2)","v":6322.14}]
[null,"Dvopolno avtomatsko zaščitno stikalo ABB S202 B6+S2-H20, I=6A, U=220VDC","kos",1]
[null,"Enopolno avtomatsko zaščitno stikalo ABB S201 C10 I=10A, U =240V AC","kos",1]
[null,"Led svetilka Rittal, 30 W,U=220 V AC","kos",1]
[null,"Mikrostikalo za vklop svetilke Rittal","kos",1]
[null,"Enopolna vtičnica Rittal, 16A","kos",1]
[null,"Vrstne sponke Weidmuller WDU 6","kos",20]
[null,"Vrstne sponke Weidmuller WDU 2,5","kos",45]
[null,"Vrstne sponke Weidmuller WTL6/2, + pribor QVS 2 SAKT1+2\nSTB 35 IH/--","kos",20]
[null,"Vrstne sponke Phoenix VBSTB 4-FS","kos",60]
[null,"Ožičenje","kpl",1]
[null,"Kanal za ožičenje Strojkoplast","m",3]
[]
["3.1.7","Dobava in izdelava (krmilna omarica merilne celice) z opremo:","komplet",2,6322.14,{"$f":"ROUND(D145*E145,2)","v":12644.28}]
[null,"V - meter Iskra FQ 0307, 0-250 V","kos",1]
[null,"V-metrska preklopka R.K. 4G10-66-U/19","kos",1]
[null,"Tropolno avtomatsko zaščitno stikalo ABB S203 Z6 + S2-H20 I=6A, 440VAC,220VDC","kos",2]
[null,"Enopolno avtomatsko zaščitno stikalo ABB S201 Z6 + S2-H20 I=6A, 440VAC,220VDC","kos",1]
[null,"Terminal vodenja in zaščite (kot npr. REF615 HBFJAEAGNEA1BBA11G ali 7SJ82 P1J101044)","kos",2]
[null,"Testna vtičnica ABB RTXP-18","kos",1]
[null,"Preklopka LOKALNO/DALJINSKO","kos",1]
[null,"Slepa shema z LED svetilkami za označbo položajev stikal"]
[null,"Vrstne sponke Phoenix VBSTB 4-FS","kos",22]
[null,"Vrstne sponke Weidmuller WPE 6","kos",3]
[null,"Vrstne sponke Weidmuller WTL6/2, + pribor QVS 2 SAKT1+2\nSTB 35 IH/--","kos",6]
[]
["3.1.8","Dobava in izdelava (krmilna omarica rezervne celice) z opremo:","komplet",2,6322.14,{"$f":"ROUND(D158*E158,2)","v":12644.28}]
[null,"Vrstne sponke Weidmuller WDU 6","kos",20]
[null,"Vrstne sponke Weidmuller WPE 6","kos",5]
[null,"Vrstne sponke Weidmuller WDU 2,5","kos",90]
[null,"Vrstne sponke Weidmuller WTL6/2, + pribor QVS 2 SAKT1+2\nSTB 35 IH/--","kos",60]
[null,"Vrstne sponke Phoenix VBSTB 4-FS","kos",50]
[null,"Ožičenje","kpl",1]
[null,"Kanal za ožičenje Strojkoplast","m",3]
[]
["3.1.9","Preizkušanje v tovarni (FAT)","kpl",1,5150,{"$f":"ROUND(D167*E167,2)","v":5150}]
["3.1.10","Montaža krmilnih omaric na celice","kpl",1,5506.38,5506.38]
["3.1.11","Funkcionalni preizkusi in spuščanje v pogon (SAT)","kpl",1,33209.879999999997,33209.879999999997]
[]
[null,{"$f":"\"SKUPAJ \"&B16 &\":\"","v":"SKUPAJ KRMILNE OMARICE:"},null,null,null,{"$f":"SUM(F16:F170)","v":157664.78}]
[]
["3.2","KOMUNIKACIJSKA OMARICA"]
[]
["3.2.1","Komunikacijska omarica 1000x600x600mm(VxŠxG)","komplet",1,16562.349999999999,{"$f":"ROUND(D175*E175,2)","v":16562.349999999999}]
[null,"12-portni patch panel MM","kos",1]
[null,"Mrežno stikalo, kot npr. Ruggedcom RSG2100 8x100MB LC MM, 2x1000MB empty SFP, 1x1000MB LC MM 4x10,100 MB RJ45, dvojni napajalnik 230 VAC in 220 VDC (6GK6021-0AS23-3DC0-Z A05+B05+C05+D05+E07+F02+G01+H01+J00+K00)","kos",1]
[null,"Redbox kot npr. 'Ruggedcom RSG907R (6GK6490-7RB00-1CN0)","kos",2]
[null,"Protokol konverter kot npr. Hitachi/ABB 530CID02, PLC, CP-E 24","kos",1]
[null,"GPS ura z zunanjo anteno, nosilcem za anteno in 50 m kabla","kos",1]
[null,"Vrstne sponke Weidmuller WDU 2,5","kos",30]
[null,"Ožičenje","kpl",1]
[null,"Drobni montažni material","kpl",1]
[]
[null,{"$f":"\"SKUPAJ \"&B173 &\":\"","v":"SKUPAJ KOMUNIKACIJSKA OMARICA:"},null,null,null,{"$f":"SUM(F173:F184)","v":16562.349999999999}]
[]
["3.3","KABELSKE POVEZAVE IN OŽIČENJE"]
[]
["3.3.1","Demontaža obstoječih kablov n odvoz na deponijo pri naročniku"]
["3.3.1.1","NYCY 4x1,5 mm2","m",938,0.52,{"$f":"ROUND(D190*E190,2)","v":487.76}]
["3.3.1.2","NYCY 8x1,5 mm2","m",938,0.52,487.76]
["3.3.1.3","NYCY 12x1,5 mm2","m",1073,0.52,557.96]
["3.3.1.4","NYCY 16x1,5 mm2","m",31,0.52,16.12]
["3.3.1.5","NYCY 3x2,5 mm2","m",636,0.52,330.72]
["3.3.1.6","NYCY 4x2,5 mm2","m",938,0.52,487.76]
["3.3.1.7","NYCY 5x2,5 mm2","m",268,0.52,139.36000000000001]
["3.3.1.8","NYCY 8x2,5 mm2","m",64,0.52,33.28]
["3.3.1.9","FG70H2R 19x1,5 mm2","m",400,0.52,208]
["3.3.1.10","FG70H2R 4x4 mm2","m",1600,0.52,832]
["3.3.1.11","PP40 4x2,5 mm²","m",200,0.52,104]
[]
["3.3.2","Dobava krmilno signalnih, napajalnih in optičnih kablov ter uvodnic"]
["3.3.2.1","NYCY 4x1,5 mm2","m",1150,1.65,{"$f":"ROUND(D203*E203,2)","v":1897.5}]
["3.3.2.2","NYCY 8x1,5 mm2","m",1150,3.19,3668.5]
["3.3.2.3","NYCY 12x1,5 mm2","m",1300,3.71,4823]
["3.3.2.4","NYCY 16x1,5 mm2","m",40,5.25,210]
["3.3.2.5","NYCY 3x2,5 mm2","m",770,1.96,1509.2]
["3.3.2.6","NYCY 4x2,5 mm2","m",1370,2.16,2959.2]
["3.3.2.7","NYCY 5x2,5 mm2","m",325,2.68,871]
["3.3.2.8","NYCY 8x2,5 mm2","m",80,4.84,387.2]
["3.3.2.9","FG70H2R 19x1,5 mm2","m",480,6.28,3014.4]
["3.3.2.10","FG70H2R 4x4 mm2","m",1900,3.19,6061]
["3.3.2.11","UTP cat 6","m",50,0.72,{"$f":"ROUND(D213*E213,2)","v":36}]
["3.3.2.12","Optični patch kabli 2xMM 50/125um","m",240,1.1299999999999999,{"$f":"ROUND(D214*E214,2)","v":271.2}]
["3.3.2.13","Optični kabel 12 vlaken MM 50/125um OM2","m",50,1.34,{"$f":"ROUND(D215*E215,2)","v":67}]
[]
["3.3.3","Polaganje in zaključevanje krmilno signalnih, napajalnih in optičnih kablov ter uvodnic"]
["3.3.3.1","NYCY 4x1,5 mm2","m",{"$f":"D203","v":1150},1.93,{"$f":"ROUND(D218*E218,2)","v":2219.5}]
["3.3.3.2","NYCY 8x1,5 mm2","m",{"$f":"D204","v":1150},1.93,2219.5]
["3.3.3.3","NYCY 12x1,5 mm2","m",1300,1.93,2509]
["3.3.3.4","NYCY 16x1,5 mm2","m",40,3.53,141.19999999999999]
["3.3.3.5","NYCY 3x2,5 mm2","m",770,1.93,1486.1]
["3.3.3.6","NYCY 4x2,5 mm2","m",1370,1.93,2644.1]
["3.3.3.7","NYCY 5x2,5 mm2","m",325,1.93,627.25]
["3.3.3.8","NYCY 8x2,5 mm2","m",80,4.49,359.2]
["3.3.3.9","FG70H2R 19x1,5 mm2","m",480,2.73,1310.4000000000001]
["3.3.3.10","FG70H2R 4x4 mm2","m",1900,2.97,5643]
["3.3.3.11","UTP cat 6","m",50,4.82,{"$f":"ROUND(D228*E228,2)","v":241}]
["3.3.3.12","Optični patch kabli 2xMM 50/125um","m",240,2.41,578.4]
["3.3.3.13","Optični kabel 12 vlaken MM 50/125um OM2","m",50,4.82,241]
["3.3.3.14","Kabelske uvodnice (kovinske-inox, tip Pg, emc)","kos",100,47.38,4738]
["3.3.3.15","Označevanje vseh položenih kablov (v celicah, na napravah, na vseh prehodih iz prostora v prostor, …) vključno z materialom za označevanje","kpl",1,2410.1999999999998,2410.1999999999998]
["3.3.3.16","Dobava in montaža elementov sistema za protipožarno tesnjenje kabelskih odprtin, izdaja certifikata požarne tesnitve","m2",1,927,{"$f":"ROUND(D233*E233,2)","v":927}]
[]
[null,{"$f":"\"SKUPAJ \"&B187 &\":\"","v":"SKUPAJ KABELSKE POVEZAVE IN OŽIČENJE:"},null,null,null,{"$f":"SUM(F187:F234)","v":57754.77}]
[]
["3.4","PREDELAVA SISTEMA VODENJA ELEKTRARNE"]
[]
["3.4.1","Vključevanje novega 6,3 kV stikališča v sistem vodenja in zaščite elektrarne (predelava SCADA in zaslonskih slik,…)","kpl",1,33892.21,{"$f":"ROUND(D239*E239,2)","v":33892.21}]
["3.4.2","Vključevanje novega 6,3 kV stikališča v sistem vodenja in zaščite 110 kV GIS stikališča","kpl",1,4532,4532]
[]
[null,{"$f":"\"SKUPAJ \"&B237 &\":\"","v":"SKUPAJ PREDELAVA SISTEMA VODENJA ELEKTRARNE:"},null,null,null,{"$f":"SUM(F237:F241)","v":38424.21}]
[]
["3.5","PREDELAVA SISTEMA LASTNE PORABE ELEKTRARNE"]
[]
["3.5.1","Dobava in vgradnja dvopolnih zaščitnih avtomatov AC ali DC, 6-25 A s pomožnimi kontakti","kos",20,51.5,{"$f":"ROUND(D246*E246,2)","v":1030}]
["3.5.2","Predelava ožičenja v omari lastne porabe +BLH03","kpl",1,123.6,{"$f":"ROUND(D247*E247,2)","v":123.6}]
["3.5.3","Predelava ožičenja v omari lastne porabe +BUL01","kpl",2,123.6,{"$f":"ROUND(D248*E248,2)","v":247.2}]
["3.5.4","Predelava ožičenja v omari lastne porabe +BRA01","kpl",3,123.6,370.8]
["3.5.5","Drobni montažni material (sponke, žice, DIN letve,…)","kpl",1,309,309]
[]
[null,{"$f":"\"SKUPAJ \"&B244 &\":\"","v":"SKUPAJ PREDELAVA SISTEMA LASTNE PORABE ELEKTRARNE:"},null,null,null,{"$f":"SUM(F244:F251)","v":2080.6}]
[]
["3.6","REZERVNI DELI"]
[]
["3.6.1","Terminal vodenja in zaščite, tip A","kos",1,4284.78,{"$f":"ROUND(D256*E256,2)","v":4284.78}]
["3.6.2","Terminal vodenja in zaščite, tip B (če je tip B enak kot tip A, potem se dobavi še en enak rele, kot je tip A)","kos",1,4284.78,{"$f":"ROUND(D257*E257,2)","v":4284.78}]
["3.6.3","Testna vtičnica ABB RTXP-18","kos",1,397.68,{"$f":"ROUND(D258*E258,2)","v":397.68}]
["3.6.4","Programska oprema za parametriranje in analizo enot vodenja in zaščite","kos",1,2141.37,2141.37]
[]
[null,{"$f":"\"SKUPAJ \"&B254 &\":\"","v":"SKUPAJ REZERVNI DELI:"},null,null,null,{"$f":"SUM(F254:F260)","v":11108.61}]
[]
[null,"SKUPAJ:",null,null,null,{"$f":"SUMIFS(F15:F262,D15:D262,\">0\",E15:E262,\">0\")","v":283595.32000000012}]

{"sheet":"4. Storitve","index":6,"n_rows":32,"n_cols":6,"rows_kept":32,"cut":false,"hidden":false,"merged":[[2,1,2,5],[29,1,29,4],[31,1,31,4]]}
[]
[]
["4.","STORITVE"]
[]
[]
[]
[]
[]
[]
[]
["Poz.","Opis opreme ali storitev","Enota","Količina","Cena na enoto (€)","Vrednost (€)"]
[]
[null,"OPOMBE:"]
[null,"- Kolikor so v določenih postavkah popisa navedeni proizvajalci in tipi posamezne opreme, s čemer so natančno opredeljene njene tehnične lastnosti, so navedeni le kot primer za določitev tehničnih parametrov opreme. Navedene dimenzije so le orientacijske. Ponudnik lahko ponudi nadomestno opremo drugega proizvajalca in tipa pri čemer morajo biti tehnične lastnosti ponujene opreme enakovredne ali boljše od tistih v popisu. Vse morebitne posledice zaradi spremembe tipov opreme, vključno z morebitnimi spremembami oz. dopolnitvami PZI dokumentacije, stroškovno in časovno bremenijo ponudnika.\n- Za vso opremo je potrebno predvideti dobavo, transport, montažo, izvedbo vseh povezav in funkcionalni preiskus."]
[]
[]
["4.1","STORITVE"]
[]
["4.1.1","Projekti za izvedbo PZI (elektromontažna in gradbena dela)","kpl",1,39623.51,{"$f":"ROUND(D19*E19,2)","v":39623.51}]
["4.1.2","Projekti izvedenih del PID (elektromontažna in gradbena dela)","kpl",1,7088.6,7088.6]
["4.1.3","Navodila za obratovanje in vzdrževanje NOV","kpl",1,4878.6899999999996,4878.6899999999996]
["4.1.4","Dokazilo o zanesljivosti objekta DZO","kpl",1,3150,3150]
["4.1.5","Transport od skladišča opreme do mesta montaže in ostali transporti, embalaža","kpl",1,900,{"$f":"ROUND(D23*E23,2)","v":900}]
["4.1.6","Zavarovanje v času montaže","kpl",1,20000,20000]
["4.1.7","Šolanje naročnikovega osebja 1 oseba/1dan v tovarni pri proizvajalcu","oseb",2,2600,5200]
["4.1.8","Šolanje naročnikovega osebja 1 oseba/1dan na objektu (velja za vso opremo)","oseb",5,544.11,{"$f":"ROUND(D26*E26,2)","v":2720.55}]
["4.1.9","Sodelovanje na strokovnih tehničnih pregledih","kpl",1,1750,{"$f":"ROUND(D27*E27,2)","v":1750}]
["4.1.10","Garancije","kpl",1,6500,6500]
[]
[null,{"$f":"\"SKUPAJ \"&B17&\":\"","v":"SKUPAJ STORITVE:"},null,null,null,{"$f":"SUM(F17:F29)","v":91811.35}]
[]
[null,"SKUPAJ:",null,null,null,{"$f":"SUMIFS(F16:F31,D16:D31,\">0\",E16:E31,\">0\")","v":91811.35}]